Cogmind - Beta 9.2 @@@ ROGUE MODE // 2019.12.15 @ 18:49:52 Player: Valguris Result: Escaped! Performance ------------- Evolutions (9) 4500 Regions Visited (40) 8000 Robots Destroyed (462) 2310 Value Destroyed (10492) 10492 Prototype IDs (184) 3680 Alien Tech Used (9) 1800 Bonus (58151) 58151 TOTAL SCORE: 88933 Bonus ------- Triggered Max Security 1000 High Alert Combat Kills 858 Follower Combat Kills 898 Met Data Miner 300 Met Imprinter 300 Destroyed Z-Imprinter 1000 Triggered Deep Caves Wall 1000 Exposed GOLEM Chamber 7000 Met Zhirov 300 Met Warlord at Base 500 MAIN.C Attacked Warlord 500 Met Warlord at Research 2000 Hacked God Mode 5000 Acquired SGEMP 2000 Delivered SGEMP 2000 Destroyed MAIN.C Guards 500 Met MAIN.C 5000 Destroyed MAIN.C Shell 5000 Zhirov Destroyed MAIN.C 3000 Met Architect 300 Started Test 138-B 500 Destroyed A8 300 Destroyed A6 400 Destroyed A5 500 Destroyed Architect 15000 Win 3000 Friendly Fire -5 Cogmind --------- Core Integrity 1178/1600 Matter 389/425 Energy 1144/1240 System Corruption 0% Temperature Cool (2) Movement Flying (10) Location To Epsilon Eridani Parts ------- > --- POWER (1) -------- Zero-point Reactor > --- PROPULSION (2) --- Experimental Cesium-ion Thruster Experimental Q-thruster > --- UTILITY (19) ----- Improved Fusion Compressor Improved Fusion Compressor Large Storage Unit Large Storage Unit Assembled Biocell Array Dimensional Manipulator Dimensional Manipulator Dimensional Manipulator Dimensional Manipulator Zionite Metafield Generator Experimental Melee Analysis Suite Experimental Armor Integrity Analyzer Experimental Actuator Array Advanced Reaction Control System Advanced Phase Shifter Experimental Powered Armor Beam Splitter AEGIS Remote Shield > --- WEAPON (3) ------- Plasma Lance Plasma Lance Plasma Lance > --- INVENTORY (18) --- Zero-point Reactor Diametric Drive Experimental Q-thruster Zionite Biocell (0) Experimental Matter Compressor (309) Experimental Terrain Scanner Experimental Target Analyzer Femtoactuators Experimental ECM Suite Advanced Reaction Control System Experimental Propulsion Shielding Experimental Powered Armor Sigix Terminator Peak State ------------ > --- POWER ------------ Zero-point Reactor > --- PROPULSION ------- Experimental Cesium-ion Thruster Experimental Q-thruster > --- UTILITY ---------- Improved Fusion Compressor Improved Fusion Compressor Large Storage Unit Large Storage Unit Assembled Biocell Array Dimensional Manipulator Dimensional Manipulator Dimensional Manipulator Dimensional Manipulator Zionite Metafield Generator Experimental Terrain Scanner Surveybot 24 Chip Experimental Melee Analysis Suite Experimental Melee Analysis Suite Experimental Armor Integrity Analyzer Advanced Reaction Control System Advanced Phase Shifter Experimental Utility Shielding AEGIS Remote Shield > --- WEAPON ----------- High-powered Disruptor Cannon Plasma Lance > --- INVENTORY -------- Zero-point Reactor Experimental Q-thruster Zionite Biocell Experimental Matter Compressor Femtoactuators Experimental Actuator Array Experimental ECM Suite Advanced Reaction Control System Advanced Phase Shifter Experimental Utility Shielding Experimental Powered Armor Experimental Powered Armor Beam Splitter Transdimensional Reconstructor High-powered Transdimensional Reconstructor Sigix Terminator Plasma Lance [Rating: 228] Favorites ----------- Power Zionite Light DM Reactor Engine Improved Deuterium Engine Power Core Nuclear Core Reactor Zionite Light DM Reactor Propulsion Armored Huge Wheel Treads Light Treads Leg Zionite Composite Leg I Wheel Armored Huge Wheel Hover Unit Zionite Glidesys I Flight Unit Experimental Cesium-ion Thruster Utility High-capacity Storage Unit Device Assembled Suspension Frame Storage High-capacity Storage Unit Processor Advanced Signal Interpreter Hackware Advanced Hacking Suite Protection Experimental Utility Shielding Weapon Cooled Particle Cannon Energy Gun Zionite Laser-M Energy Cannon Cooled Particle Cannon Ballistic Gun Flak Gun Ballistic Cannon Improved Light Cannon Launcher Rocket Launcher Special Weapon Improved Remote Datajack Slashing Weapon Ripper Piercing Weapon Plasma Lance Special Melee Weapon Datajack Build | -11 -10 -10 -9 -9 -9 -8 -8 -7 -7 -7 -7 -7 -6 -6 -6 -6 -6 -5 -5 -5 -5 -5 -5 -5 -4 -4 -4 -4 -4 -4 -4 -3 -3 -3 -2 -2 -2 -1 -1 -1 ------- Run | Scr Mat Min Mat Min Exi Min Mat Fac Low Low Zio Dee Pro Fac Low Low Dat Pro Fac Was Fac Upp Upp War Pro Fac Was Fac Upp Upp Zhi Pro Res Tes Res Qua Sec Acc Com Ac0 Slots Evolved 18 | . . . 2 . . . 2 2 . . . . . 2 . . . . 2 . . . . . . 2 . . . . . . 2 . 2 . . 2 . . Power . | . . . . . . . . . . . . . . . . . . . . . . . . . . . . . . . . . . . . . . . . . Propulsion . | . . . . . . . . . . . . . . . . . . . . . . . . . . . . . . . . . . . . . . . . . Utility 17 | . . . 2 . . . 2 2 . . . . . 2 . . . . 2 . . . . . . 2 . . . . . . 2 . 2 . . 1 . . Weapon 1 | . . . . . . . . . . . . . . . . . . . . . . . . . . . . . . . . . . . . . . 1 . . Parts Attached 865 | 7 11 5 9 10 4 10 27 36 14 13 7 88 10 28 5 3 23 7 68 2 26 8 7 15 1 52 . 58 7 1 1 . 41 29 18 18 73 47 59 17 Power 24 | 1 1 1 2 . . . 1 2 . . . 7 . . . 1 1 . . . 1 . . . . 1 . 2 . . . . 1 . . . . . 2 . Engine 7 | 1 1 . . . . . . 2 . . . 2 . . . 1 . . . . . . . . . . . . . . . . . . . . . . . . Core 4 | . . 1 2 . . . 1 . . . . . . . . . . . . . . . . . . . . . . . . . . . . . . . . . Reactor 13 | . . . . . . . . . . . . 5 . . . . 1 . . . 1 . . . . 1 . 2 . . . . 1 . . . . . 2 . Propulsion 58 | 2 . . 1 . . 1 4 5 . . . 9 . . . . 4 . 6 . 3 . 3 2 . 3 . 3 . . . . 3 3 . 1 3 1 1 . Treads 10 | 2 . . 1 . . 1 3 3 . . . . . . . . . . . . . . . . . . . . . . . . . . . . . . . . Leg 2 | . . . . . . . . . . . . 1 . . . . 1 . . . . . . . . . . . . . . . . . . . . . . . Wheel 9 | . . . . . . . 1 2 . . . 5 . . . . 1 . . . . . . . . . . . . . . . . . . . . . . . Hover 1 | . . . . . . . . . . . . 1 . . . . . . . . . . . . . . . . . . . . . . . . . . . . Flight 36 | . . . . . . . . . . . . 2 . . . . 2 . 6 . 3 . 3 2 . 3 . 3 . . . . 3 3 . 1 3 1 1 . Utility 550 | 2 3 . 5 1 2 1 5 12 12 11 6 40 4 19 3 1 12 . 41 2 19 6 4 11 1 43 . 46 5 1 1 . 35 19 15 14 56 36 40 16 Device 366 | . . . 2 . . 1 1 7 8 8 6 15 3 10 1 . 6 . 24 1 13 3 . 9 1 26 . 32 5 1 1 . 28 18 8 11 49 27 28 13 Storage 42 | 2 3 . 1 1 2 . . . 1 . . 8 . 1 1 1 2 . 5 . 1 . . 1 . 2 . 1 . . . . 1 1 3 . 1 . 2 1 Processor 20 | . . . . . . . . 1 . 2 . 3 . 2 . . 1 . 2 . . 1 . . . 2 . . . . . . 1 . . . . 1 4 . Hackware 21 | . . . 1 . . . 1 . . . . 2 . . . . . . 3 . 2 . . . . 2 . 1 . . . . 3 . 1 1 . 4 . . Protection 101 | . . . 1 . . . 3 4 3 1 . 12 1 6 1 . 3 . 7 1 3 2 4 1 . 11 . 12 . . . . 2 . 3 2 6 4 6 2 Artifact . | . . . . . . . . . . . . . . . . . . . . . . . . . . . . . . . . . . . . . . . . . Weapon 233 | 2 7 4 1 9 2 8 17 17 2 2 1 32 6 9 2 1 6 7 21 . 3 2 . 2 . 5 . 7 2 . . . 2 7 3 3 14 10 16 1 Energy Gun 31 | 2 3 . . . . . 4 7 . . . 10 . 1 . . . . . . . . . 1 . . . . . . . . . 1 . . . 1 1 . Energy Cannon 58 | . . . . . . . 2 3 1 1 1 11 1 4 1 1 3 6 12 . . 1 . . . . . 1 . . . . 1 1 . 1 4 . 2 . Ballistic Gun 6 | . . . . . . . . . . . . 3 . . . . . . . . . . . . . . . . . . . . . . 1 . . . 2 . Ballistic Cannon 33 | . 2 2 1 5 1 4 7 2 . . . 4 1 2 . . . . . . . . . . . . . . . . . . . 1 . . . . 1 . Launcher 32 | . 2 2 . 4 . 4 4 4 1 . . 2 1 . 1 . . . 1 . 2 . . . . . . . . . . . . . . . 1 1 2 . Special Weapon 28 | . . . . . . . . 1 . 1 . 1 . 1 . . 2 . 1 . . . . 1 . 3 . 3 2 . . . 1 3 2 1 4 . 1 . Impact Weapon . | . . . . . . . . . . . . . . . . . . . . . . . . . . . . . . . . . . . . . . . . . Slashing Weapon 12 | . . . . . . . . . . . . 1 3 1 . . 1 1 4 . . 1 . . . . . . . . . . . . . . . . . . Piercing Weapon 32 | . . . . . . . . . . . . . . . . . . . 3 . 1 . . . . 2 . 3 . . . . . 1 . 1 5 8 7 1 Special Melee Weapon 1 | . . . . . 1 . . . . . . . . . . . . . . . . . . . . . . . . . . . . . . . . . . . Unidentified Prototypes 49 | . . . . . . . 3 2 . . 1 6 . 1 . . 1 . 5 . 1 . . 6 . . . . . . 1 . . 3 1 1 1 1 14 1 Parts Lost 56 | . 2 . 3 . . 1 16 5 . . . 12 . . . . . . 3 . 4 . . . . . . 2 . . . . 2 1 . . . 1 1 3 Power 10 | . 1 . 1 . . . 2 1 . . . 2 . . . . . . . . 1 . . . . . . 1 . . . . . . . . . . 1 . Propulsion 12 | . . . 1 . . 1 5 2 . . . 1 . . . . . . . . 1 . . . . . . . . . . . . 1 . . . . . . Utility 17 | . . . 1 . . . 4 1 . . . 3 . . . . . . 3 . . . . . . . . . . . . . 2 . . . . 1 . 2 Weapon 17 | . 1 . . . . . 5 1 . . . 6 . . . . . . . . 2 . . . . . . 1 . . . . . . . . . . . 1 Highest Loss Streak 11 | . 1 . 2 . . 1 5 1 . . . 11 . . . . . . 1 . 3 . . . . . . 1 . . . . 1 1 . . . 1 1 2 Average Slot Usage (%) 94 | . 99 100 97 100 100 100 94 90 90 91 91 87 92 92 93 93 84 87 97 100 92 87 88 87 88 93 . 99 99 100 100 100 98 99 100 99 99 95 99 100 Engine 2 | . 13 5 . . . . . 7 7 7 7 2 . . . 4 5 . . . . . . . . . . . . . . . . . . . . . . . Core 1 | . . 8 10 11 11 11 8 . . . . . . . . . . . . . . . . . . . . . . . . . . . . . . . . . Reactor 2 | . . . . . . . . . . . . 4 7 6 6 1 . 6 5 5 5 5 5 5 5 5 . 5 5 5 5 5 3 4 4 4 4 4 4 4 Treads 3 | . 28 28 21 22 22 22 17 2 . . . . . . . . . . . . . . . . . . . . . . . . . . . . . . . . Wheel 2 | . . . . . . . . 7 7 7 7 6 7 6 6 6 5 . . . . . . . . . . . . . . . . . . . . . . . Flight 3 | . . . . . . . . . . . . . . . . . 1 13 11 11 8 5 5 5 5 7 . 9 10 10 10 10 8 8 8 7 8 8 8 8 Device 19 | . . . 1 11 11 11 8 10 13 14 14 10 14 20 19 17 22 33 27 23 27 24 23 26 23 25 . 26 25 26 26 26 27 27 28 26 25 23 42 45 Storage 26 | . 28 28 22 32 33 33 27 23 29 30 30 30 30 26 29 35 24 20 22 23 23 23 23 23 23 21 . 21 21 21 21 21 19 19 23 26 26 24 11 12 Processor 5 | . . . . . . . . 3 7 14 15 5 7 8 6 6 4 6 5 5 5 5 5 5 5 5 . 5 5 5 5 5 4 4 4 4 4 4 14 13 Hackware 6 | . . . 10 . . . . 3 . . . 1 7 3 . . . . 8 11 11 11 11 11 11 14 . 15 15 15 15 15 18 19 17 17 17 21 . . Protection 4 | . . . 9 . . . 13 13 7 . . 7 . 5 9 6 5 6 2 5 1 3 5 1 5 4 . 4 5 5 5 5 3 4 4 3 4 2 6 5 Energy Cannon 4 | . . . . . . . 5 7 14 14 14 3 7 6 7 8 9 . . . . . . . . . . . . . . . . . . . . . . . Ballistic Cannon 3 | . 2 28 22 21 12 21 4 3 . . . 5 . 4 . . . . . . . . . . . . . . . . . . . . . . . . . . Piercing Weapon 2 | . . . . . . . . . . . . . . . . . . . 6 11 6 5 5 5 5 5 . 6 5 5 5 5 4 4 4 3 6 7 10 12 Naked Turns . | . . . . . . . . . . . . . . . . . . . . . . . . . . . . . . . . . . . . . . . . . Heaviest Build 160 | 14 57 59 82 96 112 112 131 149 158 149 139 159 131 150 147 158 160 47 53 43 49 48 47 49 47 58 53 61 59 59 59 59 70 78 100 100 109 107 115 108 Greatest Support 115 | 40 40 40 40 40 40 40 40 48 28 28 28 38 38 38 38 38 48 40 53 44 49 49 49 49 49 62 62 64 62 62 62 62 89 91 100 100 106 106 115 115 Greatest Overweight (x) 12 | . 1 1 2 2 2 2 11 12 5 5 4 5 3 3 3 4 4 1 1 . . . . 1 . 1 . 4 . . . . . 4 . . 1 1 1 . Average Overweight (x) . | . . 1 1 1 2 2 2 6 5 4 4 3 3 3 3 3 2 . . . . . . . . . . . . . . . . . . . . . . . Largest Inventory Capacity 38 | 8 18 18 20 26 28 28 28 28 34 34 34 38 28 28 34 38 38 14 22 16 18 18 18 18 18 20 18 18 18 18 18 18 20 24 32 32 32 34 34 18 Average Capacity 25 | 5 14 18 18 25 26 28 28 28 33 34 34 27 28 28 30 35 23 14 17 16 16 18 18 18 18 19 18 18 18 18 18 18 18 20 27 32 32 33 17 18 Most Carried 38 | 6 18 18 20 26 28 28 28 28 34 34 34 38 28 28 32 38 38 14 18 16 18 18 18 18 18 20 18 18 18 18 18 18 20 24 30 32 32 34 30 18 Average Carried 25 | 4 13 17 18 25 26 27 24 27 33 33 34 26 27 27 29 35 20 13 17 15 16 17 17 17 17 19 18 17 18 18 18 18 18 20 26 31 31 32 16 16 Final Capacity 38 | 8 18 18 20 26 28 28 28 28 34 34 34 28 28 28 34 38 14 14 16 16 18 18 18 18 18 18 18 18 18 18 18 18 20 24 32 32 32 34 18 18 Final Carried 38 | 6 18 18 20 26 28 27 27 28 34 34 34 28 28 27 32 38 14 14 16 16 18 18 18 18 18 18 18 18 18 18 18 18 20 24 30 32 32 31 18 14 Class Distribution -------------------- 28% | Hauler-Mutant 19% | Hacker-Mutant 18% | Hauler-Skirmisher 15% | Hacker-Sprinter 5% | Mutant 5% | Scavenger-Mutant 3% | Wizard-Sprinter Dominant Class ---------------- Mutant | -10/Materials Mutant | -10/Mines Mutant | -9/Materials Hauler-Mutant | -9/Mines Hauler-Mutant | -9/Exiles Hauler-Mutant | -8/Mines Hauler-Mutant | -8/Materials Hauler-Mutant | -7/Factory Hauler-Skirmisher | -7/Lower Caves Hauler-Skirmisher | -7/Lower Caves Hauler-Skirmisher | -7/Zion Hauler-Mutant | -7/Deep Caves Hauler-Mutant | -6/Proximity Caves Hauler-Mutant | -6/Factory Hauler-Mutant | -6/Lower Caves Hauler-Mutant | -6/Lower Caves Hauler-Mutant | -6/Data Miner Scavenger-Mutant | -5/Proximity Caves Hacker-Mutant | -5/Factory Hacker-Mutant | -5/Waste Hacker-Mutant | -5/Factory Hacker-Mutant | -5/Upper Caves Hacker-Mutant | -5/Upper Caves Hacker-Mutant | -5/Warlord Hacker-Mutant | -4/Proximity Caves Hacker-Mutant | -4/Factory Hacker-Mutant | -4/Waste Hacker-Sprinter | -4/Factory Hacker-Mutant | -4/Upper Caves Hacker-Sprinter | -4/Upper Caves Hacker-Sprinter | -4/Zhirov Hacker-Sprinter | -3/Proximity Caves Hacker-Sprinter | -3/Research Hacker-Sprinter | -3/Testing Hacker-Sprinter | -2/Research Hacker-Sprinter | -2/Quarantine Hacker-Sprinter | -2/Section 7 Wizard-Sprinter | -1/Access Scavenger-Mutant | -1/Command Scavenger-Sprinter | -1/Access_0 Resources | -11 -10 -10 -9 -9 -9 -8 -8 -7 -7 -7 -7 -7 -6 -6 -6 -6 -6 -5 -5 -5 -5 -5 -5 -5 -4 -4 -4 -4 -4 -4 -4 -3 -3 -3 -2 -2 -2 -1 -1 -1 ----------- Run | Scr Mat Min Mat Min Exi Min Mat Fac Low Low Zio Dee Pro Fac Low Low Dat Pro Fac Was Fac Upp Upp War Pro Fac Was Fac Upp Upp Zhi Pro Res Tes Res Qua Sec Acc Com Ac0 Matter Collected 21636 | 270 91 101 288 299 60 201 765 839 184 135 40 1128 116 524 122 54 254 91 863 . 480 173 40 227 10 909 . 2038 122 277 55 104 1167 1170 1322 614 1918 2104 1943 538 Remotely . | . . . . . . . . . . . . . . . . . . . . . . . . . . . . . . . . . . . . . . . . . Salvage Created 23165 | 64 439 43 219 231 . 270 1263 932 159 104 . 3566 40 736 80 39 262 172 1481 . 660 . . . . 706 . 2089 . . 82 . 1357 591 583 630 1179 1949 2918 321 Parts 946 | 4 23 14 17 27 . 25 62 50 6 5 . 50 6 34 7 . 2 . 63 . 37 . . . . 41 . 81 . . 1 . 62 16 13 26 57 64 127 26 Haulers Intercepted 35 | . 2 . . . . . 3 3 . . . . . 3 . . . . 7 . 2 . . . . 2 . 5 . . . . . 2 3 . 2 1 . . Recyclers Shooed 16 | . . . . 1 . 2 2 . . . . . . . . . . . 1 . . . . . . . . 2 . . . . 3 1 . . 1 2 1 . Parts Field Recycled . | . . . . . . . . . . . . . . . . . . . . . . . . . . . . . . . . . . . . . . . . . Retrieved Matter . | . . . . . . . . . . . . . . . . . . . . . . . . . . . . . . . . . . . . . . . . . Parts Self-Destructed 27 | . . . . . . . . . 6 7 2 . 4 . 7 . . . . . . . . . . . . . . . 1 . . . . . . . . . Prevented 21 | . . . . . . . . . . . . . . . . . . . . . . . . 21 . . . . . . . . . . . . . . . . Kills | -11 -10 -10 -9 -9 -9 -8 -8 -7 -7 -7 -7 -7 -6 -6 -6 -6 -6 -5 -5 -5 -5 -5 -5 -5 -4 -4 -4 -4 -4 -4 -4 -3 -3 -3 -2 -2 -2 -1 -1 -1 ------- Run | Scr Mat Min Mat Min Exi Min Mat Fac Low Low Zio Dee Pro Fac Low Low Dat Pro Fac Was Fac Upp Upp War Pro Fac Was Fac Upp Upp Zhi Pro Res Tes Res Qua Sec Acc Com Ac0 Combat Hostiles Destroyed 225 | . 10 6 8 14 . 16 32 23 4 1 . 67 4 5 4 . 4 . 5 . 7 . . . . . . . . . . . . 1 . . 4 6 1 3 Melee 6 | . . . . . . . 1 . . . . . . . . . . . . . . . . . . . . . . . . . . 1 . . . . 1 3 Guns 17 | . 6 . . . . . 5 3 . . . 3 . . . . . . . . . . . . . . . . . . . . . . . . . . . . Cannons 55 | . . . 8 4 . 5 11 9 2 1 . 9 . 5 . . . . 1 . . . . . . . . . . . . . . . . . . . . . AOE 123 | . 4 6 . 10 . 11 15 11 2 . . 34 4 . 4 . 1 . 4 . 7 . . . . . . . . . . . . . . . 4 6 . . Classes Destroyed 21 | 1 6 1 2 1 . 1 1 1 1 . . 4 . . . . . . . . . . . . . . . . . . . . . 1 . . 1 . . . Worker 61 | . . . . 2 . 2 5 1 . . . . . 1 . . . . . . . . . . . 7 . 7 . . . . 7 1 . 6 14 8 . . Builder 12 | . . 1 . 1 . . 1 1 . . . . . . . . . . 1 . . . . . . 3 . 1 . . . . 1 . . 1 . 1 . . Tunneler 9 | . 1 . . 1 . . . . . . . . . . . . . . . . 2 . . . . 1 . 2 . . . . 2 . . . . . . . Hauler 35 | . 2 . . . . . 3 3 . . . . . 3 . . . . 7 . 2 . . . . 2 . 5 . . . . . 2 3 . 2 1 . . Recycler 46 | 1 . . . . . . 1 1 . . . . . 1 . . . . 2 . 2 . . . . 1 . 9 . . . . 7 2 2 3 4 9 1 . Minesweeper 4 | . . . . . . . . . 1 1 . . . . 1 1 . . . . . . . . . . . . . . . . . . . . . . . . Mechanic 3 | . . . . . . . . . . . . . . . . . . . . . . . . . . . . . . . . . . . . . 1 2 . . Operator 7 | . 1 . 1 . . . . . . . . . . . . . . . 2 . 1 . . . . . . . . . . . . . . 1 1 . . . Watcher 51 | . 1 . 1 . . . . 2 . . . . . 4 . . . . 8 . 4 . . . . 6 . 6 . . . . 6 2 . 1 3 7 . . Swarmer 71 | . 3 6 . 10 . 10 3 10 . . . . 4 . 4 . . . 4 . 7 . . . . . . . . . . . . . . . 4 6 . . Grunt 53 | . 7 . 6 3 . 5 23 5 3 . . . . . . . . . 1 . . . . . . . . . . . . . . . . . . . . . Brawler 1 | . . . . . . 1 . . . . . . . . . . . . . . . . . . . . . . . . . . . . . . . . . . Duelist 3 | . . . 1 1 . . . 1 . . . . . . . . . . . . . . . . . . . . . . . . . . . . . . . . Sentry 11 | . . . 1 . . . 4 4 . 1 . . . 1 . . . . . . . . . . . . . . . . . . . . . . . . . . Hunter 3 | . . . . . . . 2 1 . . . . . . . . . . . . . . . . . . . . . . . . . . . . . . . . Programmer 7 | . . . . . . . . 2 1 . . . . 4 . . . . . . . . . . . . . . . . . . . . . . . . . . Enhanced Grunt 4 | . . . . . . . . . . . . . . . . . 4 . . . . . . . . . . . . . . . . . . . . . . . Alpha 7 1 | . . . . . . . . . . . . . . . . . . . . . . . . . . . . . . . . . . 1 . . . . . . Z-Technician 5 | . . . . . . . . . . . . 5 . . . . . . . . . . . . . . . . . . . . . . . . . . . . Z-Light 1 | . . . . . . . . . . . . 1 . . . . . . . . . . . . . . . . . . . . . . . . . . . . Packrat 2 | . . . . . . . . . . . . . . . . . . 2 . . . . . . . . . . . . . . . . . . . . . . Assembler 2 | . . . . . . . . . . . . 2 . . . . . . . . . . . . . . . . . . . . . . . . . . . . Assembled 37 | . . . . . . . . . . . . 37 . . . . . . . . . . . . . . . . . . . . . . . . . . . . Golem 28 | . . . . . . . . . . . . 28 . . . . . . . . . . . . . . . . . . . . . . . . . . . . Best Kill Streak 61 | 1 4 4 3 5 . 5 11 6 3 1 . 61 4 1 4 1 4 . 4 . 5 . . . . 11 . 6 . . . . 2 2 2 3 6 6 1 1 Combat Bots Only 34 | . 4 3 3 4 . 4 11 6 3 1 . 34 4 1 4 . 4 . 4 . 5 . . . . . . . . . . . . 1 . . 4 6 1 1 Max Kills in Single Turn 8 | 1 2 4 1 4 . 4 3 2 1 1 . 8 2 1 3 1 2 1 4 . 3 . . . . 1 . 1 . . . . 1 1 1 1 2 4 1 1 Gunslinging . | . . . . . . . . . . . . . . . . . . . . . . . . . . . . . . . . . . . . . . . . . Exploded 8 | . 2 3 . 4 . 4 3 2 1 . . 8 2 . 3 . 1 . 4 . 3 . . . . . . . . . . . . . . . 2 4 . . Melee 1 | . . . . . . . 1 . . . . . . . . . . . . . . . . . . . . . . . . . . 1 . . . . 1 1 Uniques/NPCs Destroyed 5 | . . . . . . . . . . . . 1 . . . . . . . . . . . . . . . . . . . . . . . . . . 1 3 Z-Imprinter (-7/Deep Caves) MAIN.C Shell (-1/Command) A5 (-1/Access_0) A8 (-1/Access_0) Architect (-1/Access_0) Combat | -11 -10 -10 -9 -9 -9 -8 -8 -7 -7 -7 -7 -7 -6 -6 -6 -6 -6 -5 -5 -5 -5 -5 -5 -5 -4 -4 -4 -4 -4 -4 -4 -3 -3 -3 -2 -2 -2 -1 -1 -1 -------- Run | Scr Mat Min Mat Min Exi Min Mat Fac Low Low Zio Dee Pro Fac Low Low Dat Pro Fac Was Fac Upp Upp War Pro Fac Was Fac Upp Upp Zhi Pro Res Tes Res Qua Sec Acc Com Ac0 Damage Taken 13385 | . 367 40 507 108 . 364 2401 1601 148 48 . 2677 37 164 48 . . . 432 . 284 . . . 46 55 . 702 58 . . . 162 266 254 . 1162 391 271 792 Core 2045 | . 43 14 72 27 . 70 274 165 14 10 . 351 . 5 . . . . 78 . 69 . . . . . . 200 25 . . . 64 . 127 . 194 78 28 137 Absorbed by Shields 1663 | . . . . . . . . . 33 . . 551 . 77 . . . . . . . . . . . . . 66 . . . . . . . . 31 . 157 748 Core Remaining (%) 74 | 100 . 77 . . . 57 50 . . . . . 22 . . . . 99 . . . . . . 85 . . . . . . 80 . 95 . . 77 . . 73 Volleys Fired 858 | 3 39 4 37 12 . 21 65 78 24 37 9 214 7 47 47 19 2 23 22 . 3 . . 1 . 4 . 1 1 . 5 . . 10 10 3 17 3 90 . Largest 2 | 2 2 2 2 2 . 2 2 2 2 2 2 2 1 2 1 2 2 1 1 . 1 . . 1 . 1 . 1 1 . 1 . . 1 1 1 1 1 1 . Hottest 170 | 90 90 70 70 74 . 78 129 118 60 60 90 144 57 143 90 170 170 90 120 . 50 . . 40 . 40 . 105 40 . 40 . . 120 50 120 120 75 75 . Shots Fired 1196 | 6 73 5 74 16 . 33 112 130 44 73 15 265 7 76 47 24 3 23 22 . 3 . . 1 . 4 . 1 1 . 5 . . 10 10 3 17 3 90 . Gun 295 | 6 70 . . . . . 37 35 . . . 86 . . . . . . . . . . . . . . . . . . . . . . . . . 1 60 . Cannon 754 | . . 2 74 8 . 24 61 85 40 72 15 162 5 75 44 24 2 23 21 . . . . . . . . 1 . . . . . 3 . 1 12 . . . Launcher 79 | . 3 3 . 8 . 9 14 10 4 . . 15 2 . 3 . . . . . 3 . . . . . . . . . . . . . . . 2 2 1 . Special 68 | . . . . . . . . . . 1 . 2 . 1 . . 1 . 1 . . . . 1 . 4 . . 1 . 5 . . 7 10 2 3 . 29 . Kinetic 232 | . . 2 74 8 . 24 31 36 . . . 19 5 33 . . . . . . . . . . . . . . . . . . . . . . . . . . Thermal 652 | 6 63 . . . . . 67 84 40 72 15 103 . 42 44 24 2 23 21 . . . . . . . . 1 . . . . . 3 . 1 12 . 29 . Explosive 79 | . 3 3 . 8 . 9 14 10 4 . . 15 2 . 3 . . . . . 3 . . . . . . . . . . . . . . . 2 2 1 . Electromagnetic 194 | . 7 . . . . . . . . . . 126 . . . . . . . . . . . . . . . . . . . . . . . . . 1 60 . Robot Hit Streak 55 | 4 14 5 14 3 . 13 10 8 3 8 . 55 . 18 6 3 2 . 3 . . . . 1 . 2 . . 1 . 4 . . 8 4 1 1 3 14 . Robot Miss Streak 10 | 1 2 . 2 1 . 2 2 4 3 1 . 7 2 4 . 2 1 . 1 . 10 . . . . 1 . 1 . . 1 . . 1 1 1 1 . 2 . Penetration Max . | . . . . . . . . . . . . . . . . . . . . . . . . . . . . . . . . . . . . . . . . . Secondary Targets 1 | . 1 . . . . . . . . . . . . . . . . . . . . . . . . . . . . . . . . . . . . . . . Max Gunslinging Chain 1 | . 1 . . . . . . . . . . . . . . . . . . . . . . . . . . . . . . . . . . . . . . . Shots Hit Robots 1079 | 4 55 2 51 6 11 19 72 76 14 13 . 184 . 51 6 4 2 4 50 . 13 . . 1 . 35 . 53 1 . 6 . 32 19 23 15 38 53 128 38 Core Hits 814 | 2 27 9 13 19 . 25 70 54 11 4 . 222 5 18 9 1 11 2 36 . 19 . . . . 19 . 32 . . 2 . 22 7 6 11 35 39 63 21 Critical Hits 38 | . . . 1 . . . 4 2 . . . 2 . 2 . . . . 5 . 1 . . . . 1 . 1 . . 1 . 3 1 . 1 . 3 6 4 Critical Kills 17 | . . . . . . . 1 1 . . . 2 . 1 . . . . 3 . . . . . . 1 . . . . 1 . 2 1 . 1 . 1 2 . Critical Parts Destroyed 17 | . . . 1 . . . 2 1 . . . . . 1 . . . . 2 . 1 . . . . . . 1 . . . . 1 . . . . 1 3 3 Melee Attacks 1708 | . . . . . 11 . . . . . . . 36 4 . . . 4 263 3 99 23 6 1 12 149 . 195 10 24 2 4 124 54 76 61 178 232 87 50 Impact . | . . . . . . . . . . . . . . . . . . . . . . . . . . . . . . . . . . . . . . . . . Slashing 133 | . . . . . . . . . . . . . 36 4 . . . 4 89 . . . . . . . . . . . . . . . . . . . . . Piercing 1564 | . . . . . . . . . . . . . . . . . . . 174 3 99 23 6 1 12 149 . 195 10 24 2 4 124 54 76 61 178 232 87 50 Sneak Attacks 169 | . . . . . 11 . . . . . . . . 1 . . . 1 11 . 6 . . . . 17 . 29 . . . . 23 6 5 11 24 23 1 . Combat Hostiles . | . . . . . . . . . . . . . . . . . . . . . . . . . . . . . . . . . . . . . . . . . Follow-up Attacks 52 | . . . . . . . . . . . . . . . . . . . 6 . . . . . . 2 . 4 . . . . . . . . 4 9 11 16 Damage Inflicted 69035 | 48 945 472 884 834 . 1482 3426 3085 658 324 . 8613 174 1675 402 117 607 220 2987 . 1964 . . . . 3334 . 5576 . . 240 . 3898 1426 1203 1670 5058 6167 9012 2534 Guns 3268 | 48 635 . . . . . 463 494 . . . 1341 . . . . . . . . . . . . . . . . . . . . . . . . . 24 263 . Cannons 10006 | . . 36 873 110 . 344 836 1336 316 324 . 3626 . 1562 187 117 . . 339 . . . . . . . . . . . . . . . . . . . . . Explosions 13308 | . 299 418 . 622 . 1055 2065 1255 342 . . 3646 174 . 215 . 607 . 195 . 750 . . . . . . . . . . . . . . . 770 865 30 . Melee 41950 | . . . . . . . . . . . . . . 113 . . . 220 2453 . 1214 . . . . 3334 . 5576 . . 240 . 3898 1426 1203 1670 4288 5278 8503 2534 Ramming 287 | . 11 18 11 102 . 83 62 . . . . . . . . . . . . . . . . . . . . . . . . . . . . . . . . . Kinetic 3259 | . . 36 873 110 . 344 386 625 . . . 267 . 618 . . . . . . . . . . . . . . . . . . . . . . . . . . Thermal 6994 | 48 604 . . . . . 913 1276 316 324 . 1710 . 944 187 117 . . 339 . . . . . . . . . . . . . . . . . . . 216 . Explosive 12254 | . 247 418 . 622 . 1055 2065 1146 342 . . 3555 174 . 215 . . . . . 750 . . . . . . . . . . . . . . . 770 865 30 . Electromagnetic 4291 | . 83 . . . . . . 38 . . . 3081 . . . . 607 . 195 . . . . . . . . . . . . . . . . . . 24 263 . Impact . | . . . . . . . . . . . . . . . . . . . . . . . . . . . . . . . . . . . . . . . . . Slashing 1758 | . . . . . . . . . . . . . . 113 . . . 220 1425 . . . . . . . . . . . . . . . . . . . . . Piercing 40192 | . . . . . . . . . . . . . . . . . . . 1028 . 1214 . . . . 3334 . 5576 . . 240 . 3898 1426 1203 1670 4288 5278 8503 2534 Highest Corruption 16 | . . . . . . . . 1 1 . . . . 3 3 3 3 3 7 16 16 2 . . . . . 1 1 . . . . . . . . . 1 . Average Corruption 4 | . . . . . . . . 1 1 . . . . 2 3 3 3 3 5 13 10 1 . . . . . 1 1 . . . . . . . . . 1 . Corruption Purged 20 | . . . . . . . . 1 1 . . . . . . . . . . . 14 2 . . . . . . 1 . . . . . . . . . 1 . Effects 339 | . . . . . . . . 3 3 . . . . 14 25 23 8 13 104 5 125 2 . . . . . 7 1 . . . . . . . . . 6 . Message Errors 84 | . . . . . . . . 1 1 . . . . 2 8 5 2 5 26 1 26 1 . . . . . 3 1 . . . . . . . . . 2 . Matter Fused 64 | . . . . . . . . . . . . . . 4 2 4 2 2 21 . 29 . . . . . . . . . . . . . . . . . . . Heat Flow Errors 33 | . . . . . . . . . . . . . . 2 3 7 2 1 12 1 5 . . . . . . . . . . . . . . . . . . . Energy Discharges 48 | . . . . . . . . . . . . . . 3 7 3 2 1 14 . 12 1 . . . . . 3 . . . . . . . . . . 2 . Parts Rejected 2 | . . . . . . . . . . . . . . . . . . . 1 . 1 . . . . . . . . . . . . . . . . . . . Data Loss (minor) 42 | . . . . . . . . 1 2 . . . . 1 2 4 . 3 12 . 16 . . . . . . 1 . . . . . . . . . . . . Data Loss (major) 9 | . . . . . . . . . . . . . . . . . . . 3 . 6 . . . . . . . . . . . . . . . . . . . Alerts 2 | . . . . . . . . . . . . . . . . . . . . . 2 . . . . . . . . . . . . . . . . . . . Misdirections 19 | . . . . . . . . . . . . . . . . . . . . 2 17 . . . . . . . . . . . . . . . . . . . Targeting Errors 35 | . . . . . . . . 1 . . . . . 1 3 . . 1 15 1 11 . . . . . . . . . . . . . . . . . 2 . Weapon Failures 1 | . . . . . . . . . . . . . . 1 . . . . . . . . . . . . . . . . . . . . . . . . . . Overload Shots 3 | . . . . . . . . . . . 3 . . . . . . . . . . . . . . . . . . . . . . . . . . . . . Overflow Damage 7472 | . 13 9 20 109 . 97 62 92 58 47 . 245 . 61 44 27 . 103 193 . 129 . . . . 903 . 1058 . . . . 813 301 262 331 297 1235 828 135 Projectiles 399 | . . . 20 . . 11 . 20 56 47 . 104 . 61 44 27 . . 9 . . . . . . . . . . . . . . . . . . . . . Explosions 675 | . 13 9 . 109 . 75 62 72 2 . . 141 . . . . . . . . 70 . . . . . . . . . . . . . . . . 122 . . Melee 6398 | . . . . . . 11 . . . . . . . . . . . 103 184 . 59 . . . . 903 . 1058 . . . . 813 301 262 331 297 1113 828 135 Knockbacks 32 | . . . 17 1 . 3 2 5 . . . 2 . 2 . . . . . . . . . . . . . . . . . . . . . . . . . . Impact 1 | . . . . 1 . . . . . . . . . . . . . . . . . . . . . . . . . . . . . . . . . . . . Kinetic 28 | . . . 14 . . 3 2 5 . . . 2 . 2 . . . . . . . . . . . . . . . . . . . . . . . . . . Secondary 3 | . . . 3 . . . . . . . . . . . . . . . . . . . . . . . . . . . . . . . . . . . . . Self-Inflicted Damage 362 | . 48 . . . . 46 48 170 . . . 31 . . . . . . 19 . . . . . . . . . . . . . . . . . . . . . Shots 15 | . 2 . . . . 3 3 5 . . . 1 . . . . . . 1 . . . . . . . . . . . . . . . . . . . . . Rammed 25 | . 2 1 2 9 . 5 6 . . . . . . . . . . . . . . . . . . . . . . . . . . . . . . . . . Targets Rammed 30 | . 2 1 2 11 . 6 8 . . . . . . . . . . . . . . . . . . . . . . . . . . . . . . . . . Kicked . | . . . . . . . . . . . . . . . . . . . . . . . . . . . . . . . . . . . . . . . . . Crushed 5 | . . . . 2 . 1 2 . . . . . . . . . . . . . . . . . . . . . . . . . . . . . . . . . Highest Temperature 369 | 90 295 9 192 . . 9 309 193 54 3 99 323 140 369 263 280 220 248 252 182 273 . . 22 . 44 7 86 10 . 24 . . 224 110 . 160 . . . Average Temperature 64 | 47 99 6 72 . . 9 75 51 23 2 44 87 61 97 75 82 75 38 77 97 107 . . 13 . 3 5 8 10 . 16 . . 75 36 . 63 . . . Received Heat Transfer 3024 | . 162 . 204 6 . 90 945 276 42 18 . 602 . 4 . . . . 54 . . . . . 9 12 . 147 18 . . . 18 . . . 246 18 16 137 Effects 10 | . . . . . . . . . . . . 1 . 6 . . . 1 2 . . . . . . . . . . . . . . . . . . . . . Energy Bleed 4 | . . . . . . . . . . . . . . 1 . . . 1 2 . . . . . . . . . . . . . . . . . . . . . Interference 5 | . . . . . . . . . . . . . . 5 . . . . . . . . . . . . . . . . . . . . . . . . . . Short Circuit 1 | . . . . . . . . . . . . 1 . . . . . . . . . . . . . . . . . . . . . . . . . . . . Siege Activations . | . . . . . . . . . . . . . . . . . . . . . . . . . . . . . . . . . . . . . . . . . Robots Corrupted 25 | . . . . . . . . . . . . 22 . . . . 3 . . . . . . . . . . . . . . . . . . . . . . . Combat Hostiles 25 | . . . . . . . . . . . . 22 . . . . 3 . . . . . . . . . . . . . . . . . . . . . . . Parts Fried 6 | . . . . . . . . . . . . . . . . . 6 . . . . . . . . . . . . . . . . . . . . . . . Impact Corruptions 3 | . . . 1 1 . 1 . . . . . . . . . . . . . . . . . . . . . . . . . . . . . . . . . . Robots Melted . | . . . . . . . . . . . . . . . . . . . . . . . . . . . . . . . . . . . . . . . . . Combat Hostiles . | . . . . . . . . . . . . . . . . . . . . . . . . . . . . . . . . . . . . . . . . . Parts Melted 15 | . 4 . . . . . 1 3 1 . . 3 . 2 . . . . 1 . . . . . . . . . . . . . . . . . . . . . Heat Transferred 10777 | 124 1613 . . . . . 1702 1789 407 444 . 1841 . 1073 222 161 . . 542 . . . . . . . . . . . . . . . . . . . 859 . Parts Sabotaged 4 | . . . . . . . . . . . . . . . . . . . . . . . . . . . . . . . . . . . . . 4 . . . Parts Stolen . | . . . . . . . . . . . . . . . . . . . . . . . . . . . . . . . . . . . . . . . . . Parts Stripped . | . . . . . . . . . . . . . . . . . . . . . . . . . . . . . . . . . . . . . . . . . Power Chain Reactions 3 | . 1 . . . . . . . . . . 1 . . . . . . 1 . . . . . . . . . . . . . . . . . . . . . Missiles Intercepted . | . . . . . . . . . . . . . . . . . . . . . . . . . . . . . . . . . . . . . . . . . Alert | -11 -10 -10 -9 -9 -9 -8 -8 -7 -7 -7 -7 -7 -6 -6 -6 -6 -6 -5 -5 -5 -5 -5 -5 -5 -4 -4 -4 -4 -4 -4 -4 -3 -3 -3 -2 -2 -2 -1 -1 -1 ------- Run | Scr Mat Min Mat Min Exi Min Mat Fac Low Low Zio Dee Pro Fac Low Low Dat Pro Fac Was Fac Upp Upp War Pro Fac Was Fac Upp Upp Zhi Pro Res Tes Res Qua Sec Acc Com Ac0 Peak Influence 1659 | 5 265 110 254 281 . 207 925 1026 . . . . . 134 . . . . 756 283 279 . . . . 558 195 285 . . . . 245 642 471 363 1224 1659 1261 . Average Influence 277 | 1 134 26 123 69 . 59 627 592 . . . . . 42 . . . . 261 275 109 . . . . 65 195 163 . . . . 115 252 315 226 725 724 1187 . Maximum Alert Level 5 | . 1 . 1 1 . 1 3 3 . . . . . . . . . . 3 1 1 . . . . 2 . 1 . . . . 1 2 2 1 4 5 4 . Low Security (%) 60 | 100 81 100 86 84 . 87 10 . . . . . . 100 . . . . 68 . 79 . . . . 99 100 70 . . . . 88 50 7 44 10 . 83 . Level 1 14 | . 18 . 13 15 . 12 1 6 . . . . . . . . . . 1 100 20 . . . . . . 29 . . . . 11 39 66 55 11 9 . . Level 2 15 | . . . . . . . 42 87 . . . . . . . . . . 20 . . . . . . . . . . . . . . 9 25 . 22 45 . . Level 3 6 | . . . . . . . 45 5 . . . . . . . . . . 9 . . . . . . . . . . . . . . . . . 32 23 . . Level 4 3 | . . . . . . . . . . . . . . . . . . . . . . . . . . . . . . . . . . . . . 24 20 16 . Level 5 . | . . . . . . . . . . . . . . . . . . . . . . . . . . . . . . . . . . . . . . . . . High Security . | . . . . . . . . . . . . . . . . . . . . . . . . . . . . . . . . . . . . . . . . . Max Security . | . . . . . . . . . . . . . . . . . . . . . . . . . . . . . . . . . . . . . . . . . Squads Dispatched 114 | . 3 . 2 1 . 1 9 10 . . . . . 4 . . . . 16 . 7 . . . . 7 . 11 . . . . 7 3 2 6 14 10 1 . Investigation 34 | . 2 . . 1 . . 1 4 . . . . . . . . . . 5 . 3 . . . . 4 . 3 . . . . 3 1 1 3 . 2 1 . Extermination 33 | . . . . . . . . 2 . . . . . 3 . . . . 4 . 3 . . . . 3 . 5 . . . . 3 . . 2 5 3 . . Reinforcement 33 | . 1 . 2 . . 1 6 2 . . . . . 1 . . . . 5 . 1 . . . . . . 3 . . . . 1 2 1 1 5 1 . . Assault 12 | . . . . . . . 2 1 . . . . . . . . . . 2 . . . . . . . . . . . . . . . . . 3 4 . . Garrison 2 | . . . . . . . . 1 . . . . . . . . . . . . . . . . . . . . . . . . . . . . 1 . . . Intercept . | . . . . . . . . . . . . . . . . . . . . . . . . . . . . . . . . . . . . . . . . . Construction Impeded 3 | . . . . . . 1 1 . . . . . . 1 . . . . . . . . . . . . . . . . . . . . . . . . . . Haulers Reinforced 9 | . . . . . . . . 1 . . . . . . . . . . 3 . . . . . . . . 2 . . . . . 1 1 . . 1 . . Stealth | -11 -10 -10 -9 -9 -9 -8 -8 -7 -7 -7 -7 -7 -6 -6 -6 -6 -6 -5 -5 -5 -5 -5 -5 -5 -4 -4 -4 -4 -4 -4 -4 -3 -3 -3 -2 -2 -2 -1 -1 -1 --------- Run | Scr Mat Min Mat Min Exi Min Mat Fac Low Low Zio Dee Pro Fac Low Low Dat Pro Fac Was Fac Upp Upp War Pro Fac Was Fac Upp Upp Zhi Pro Res Tes Res Qua Sec Acc Com Ac0 Distress Signals 47 | . 2 . 1 . . . 4 3 . . . . . . . . . . 2 . . . . 1 . 5 . 6 . . . . 1 5 9 . 3 4 1 . Communications Jammed . | . . . . . . . . . . . . . . . . . . . . . . . . . . . . . . . . . . . . . . . . . Distress Signals . | . . . . . . . . . . . . . . . . . . . . . . . . . . . . . . . . . . . . . . . . . Times Spotted 746 | . 18 8 13 13 . 21 58 42 4 2 . 73 4 11 1 . . 1 50 6 30 1 . . 3 38 . 52 3 6 . . 40 13 30 22 85 74 2 22 Peak Tracking Total 36 | . 4 3 3 4 . 4 9 7 3 1 . 36 4 2 4 . . 5 5 6 7 1 . . 3 5 . 8 3 5 . . 12 7 5 10 11 12 1 12 Tactical Retreats 142 | . 3 . . . . 5 . 2 . . . 7 . . . . . 1 15 . 8 1 . . 2 18 . 13 1 2 . . 10 3 4 5 24 16 . 2 Traps | -11 -10 -10 -9 -9 -9 -8 -8 -7 -7 -7 -7 -7 -6 -6 -6 -6 -6 -5 -5 -5 -5 -5 -5 -5 -4 -4 -4 -4 -4 -4 -4 -3 -3 -3 -2 -2 -2 -1 -1 -1 ------- Run | Scr Mat Min Mat Min Exi Min Mat Fac Low Low Zio Dee Pro Fac Low Low Dat Pro Fac Was Fac Upp Upp War Pro Fac Was Fac Upp Upp Zhi Pro Res Tes Res Qua Sec Acc Com Ac0 Traps Triggered 27 | . 1 . . 1 . . . . . . . . . 1 . . 3 . 1 . 1 . . . . 2 . 4 . . . . . 1 . . 2 . 10 . Indirectly 3 | . . . . . . . . . . . . . . . . . 3 . . . . . . . . . . . . . . . . . . . . . . . Trap Hack Attempts . | . . . . . . . . . . . . . . . . . . . . . . . . . . . . . . . . . . . . . . . . . Triggered . | . . . . . . . . . . . . . . . . . . . . . . . . . . . . . . . . . . . . . . . . . Disarmed . | . . . . . . . . . . . . . . . . . . . . . . . . . . . . . . . . . . . . . . . . . Reprogrammed . | . . . . . . . . . . . . . . . . . . . . . . . . . . . . . . . . . . . . . . . . . Reused 3 | . . . . . . . . . . 1 . 1 . . . . 1 . . . . . . . . . . . . . . . . . . . . . . . Traps Extracted . | . . . . . . . . . . . . . . . . . . . . . . . . . . . . . . . . . . . . . . . . . Installed 15 | . . . . . . . . . . 5 . 3 . . . . 7 . . . . . . . . . . . . . . . . . . . . . . . Triggered 4 | . . . . . . . . . . 1 . . . . . . . . . . . . . . 1 . . . 1 . . . . . . . 1 . . . Machines | -11 -10 -10 -9 -9 -9 -8 -8 -7 -7 -7 -7 -7 -6 -6 -6 -6 -6 -5 -5 -5 -5 -5 -5 -5 -4 -4 -4 -4 -4 -4 -4 -3 -3 -3 -2 -2 -2 -1 -1 -1 ---------- Run | Scr Mat Min Mat Min Exi Min Mat Fac Low Low Zio Dee Pro Fac Low Low Dat Pro Fac Was Fac Upp Upp War Pro Fac Was Fac Upp Upp Zhi Pro Res Tes Res Qua Sec Acc Com Ac0 Machines Disabled 90 | . . 2 . 1 . 2 9 12 1 . 3 2 . 2 . . 1 . 4 . . . 1 . . . . 1 . . . . . 4 2 2 32 1 2 6 Max in Single Turn 20 | . . 1 . 1 . 2 3 3 1 . 1 1 . 1 . . 1 . 3 . . . 1 . . . . 1 . . . . . 1 1 1 20 1 1 1 Garrison Access 27 | . . . . . . . 1 2 . . . . . . . . . . 3 . 2 . . . . 4 . 2 . . . . 3 1 2 1 1 5 . . Machines Sabotaged . | . . . . . . . . . . . . . . . . . . . . . . . . . . . . . . . . . . . . . . . . . Garrisons Compromised . | . . . . . . . . . . . . . . . . . . . . . . . . . . . . . . . . . . . . . . . . . Overloaded Fab Kills . | . . . . . . . . . . . . . . . . . . . . . . . . . . . . . . . . . . . . . . . . . Fab Network Shutdowns 4 | . . . . . . . . . . . . . . . . . . . 1 . . . . . . 1 . . . . . . . 1 . . . 1 . . Hacking | -11 -10 -10 -9 -9 -9 -8 -8 -7 -7 -7 -7 -7 -6 -6 -6 -6 -6 -5 -5 -5 -5 -5 -5 -5 -4 -4 -4 -4 -4 -4 -4 -3 -3 -3 -2 -2 -2 -1 -1 -1 --------- Run | Scr Mat Min Mat Min Exi Min Mat Fac Low Low Zio Dee Pro Fac Low Low Dat Pro Fac Was Fac Upp Upp War Pro Fac Was Fac Upp Upp Zhi Pro Res Tes Res Qua Sec Acc Com Ac0 Machines Accessed 259 | . 4 . 4 3 4 . 3 13 3 1 . . . 9 . . 4 . 29 . 20 1 2 6 . 25 . 20 1 1 9 . 19 10 3 12 20 28 3 2 Terminals 136 | . 3 . 4 1 . . 1 7 1 . . . . 5 . . . . 19 . 13 . . . . 14 . 12 . . . . 9 7 2 8 15 12 3 . Fabricators 18 | . . . . . . . . . . . . . . 1 . . . . 1 . 4 . . . . 3 . 3 . . . . 3 1 . . . 2 . . Repair Stations 20 | . . . . . . . . 2 . . . . . 3 . . . . . . . . . . . 1 . 3 . . . . 2 1 . 2 2 4 . . Recycling Units 18 | . 1 . . . . . 1 2 . . . . . . . . . . 5 . 1 . . . . 2 . . . . . . 2 . . . . 4 . . Scanalyzers 5 | . . . . . . . . . . . . . . . . . . . . . . . . . . 1 . . . . . . . . . 1 2 1 . . Garrison Access 27 | . . . . . . . 1 2 . . . . . . . . . . 4 . 2 . . . . 4 . 2 . . . . 3 1 1 1 1 5 . . Total Hacks 861 | . 12 . 9 3 48 . 7 35 13 1 . . . 27 . . 24 . 73 . 44 1 2 12 . 63 . 62 1 1 48 . 72 38 9 52 65 109 8 22 Successful 609 | . 5 . 5 3 48 . 5 17 9 1 . . . 11 . . 24 . 32 . 30 1 2 12 . 45 . 52 1 1 48 . 54 22 4 34 45 72 4 22 Failed 248 | . 7 . 4 . . . 2 18 4 . . . . 16 . . . . 40 . 14 . . . . 17 . 9 . . . . 18 16 5 17 20 37 4 . Catastrophic 36 | . . . . . . . . 3 1 . . . . 2 . . . . 10 . 4 . . . . 3 . 2 . . . . 2 2 . . 4 3 . . Database Lockouts 4 | . . . . . . . . . . . . . . . . . . . 1 . . . . . . 1 . 1 . . . . . . . 1 . . . . Manual 340 | . 11 . 6 1 . . 3 15 6 . . . . 14 . . . . 47 . 23 . . 1 . 31 . 24 . . . . 34 21 4 29 40 23 7 . Terminals 457 | . 11 . 9 1 . . 4 24 7 . . . . 15 . . . . 49 . 32 . . . . 39 . 34 . . . . 37 30 8 35 51 63 8 . Fabricators 69 | . . . . . . . . . . . . . . 4 . . . . 4 . 9 . . . . 12 . 11 . . . . 18 3 . . . 8 . . Repair Stations 85 | . . . . . . . . 4 . . . . . 8 . . . . . . . . . . . 2 . 14 . . . . 11 4 . 10 8 24 . . Recycling Units 30 | . 1 . . . . . 1 4 . . . . . . . . . . 11 . 1 . . . . 3 . . . . . . 2 . . . . 7 . . Scanalyzers 13 | . . . . . . . . . . . . . . . . . . . . . . . . . . 2 . . . . . . . . . 5 5 1 . . Garrison Access 39 | . . . . . . . 2 3 . . . . . . . . . . 9 . 2 . . . . 5 . 3 . . . . 4 1 1 2 1 6 . . Terminal Hacks 336 | . 3 . 4 3 48 . 1 8 9 1 . . . 1 . . 24 . 8 . 12 1 2 12 . 18 . 20 1 1 48 . 16 9 1 14 19 29 1 22 Record 129 | . . . . . 48 . . . 6 . . . . . . . 11 . . . . . 1 11 . . . . . . 36 . . . . . . . . 16 Part Schematic 26 | . . . . . . . . . 1 . . . . . . . 5 . 1 . 2 . . . . 4 . 1 . . 4 . 2 1 . 4 . 1 . . Robot Schematic 5 | . . . . . . . . . . . . . . . . . 5 . . . . . . . . . . . . . . . . . . . . . . . Robot Analysis 8 | . 1 . 2 . . . . . 1 . . . . . . . . . . . . . . . . . . . . . 4 . . . . . . . . . Prototype ID Bank 34 | . . . . . . . . . . . . . . . . . 3 . . . 2 . . . . 3 . 8 . . 4 . 3 3 . 2 2 4 . . Open Door 18 | . . . . 2 . . . . 1 1 . . . . . . . . . . 1 1 1 1 . . . . 1 1 . . . . . 1 5 1 1 . Branch Access Points 5 | . . . 1 . . . . 1 . . . . . 1 . . . . . . 1 . . . . . . 1 . . . . . . . . . . . . Machine Index 3 | . . . . . . . . . . . . . . . . . . . . . . . . . . 1 . 1 . . . . 1 . . . . . . . Terminal Index 4 | . . . . . . . . . . . . . . . . . . . . . 1 . . . . 1 . . . . . . 1 . . 1 . . . . Fabricator Index 1 | . . . . . . . . . . . . . . . . . . . . . . . . . . . . . . . . . 1 . . . . . . . Repair Station Index 1 | . . . . . . . . . . . . . . . . . . . . . . . . . . . . . . . . . . . . 1 . . . . Alert Level 3 | . . . . . . . . 1 . . . . . . . . . . . . . . . . . . . . . . . . . . . . 1 1 . . Unreport Threat 9 | . . . . . . . . 2 . . . . . . . . . . . . . . . . . . . . . . . . . . . . . 7 . . Locate Traps 10 | . 1 . . . . . . 2 . . . . . . . . . . . . . . . . . 4 . 1 . . . . . 1 . . 1 . . . Dispatch Records 4 | . . . . . . . . . . . . . . . . . . . . . . . . . . . . . . . . . . . . . 1 3 . . Patrol Status 2 | . . . . 1 . . 1 . . . . . . . . . . . . . . . . . . . . . . . . . . . . . . . . . Recall Investigation 8 | . 1 . . . . . . . . . . . . . . . . . 1 . . . . . . . . 1 . . . . 2 1 . . . 2 . . Recall Extermination 19 | . . . . . . . . . . . . . . . . . . . 1 . 3 . . . . 2 . 3 . . . . 2 . . 2 3 3 . . Recall Reinforcements 10 | . . . . . . . . . . . . . . . . . . . 1 . . . . . . . . 1 . . . . . 1 . 1 4 2 . . Recall Assault 6 | . . . . . . . . . . . . . . . . . . . . . . . . . . . . . . . . . . . . . 2 4 . . Hauler Manifests 13 | . . . 1 . . . . 1 . . . . . . . . . . 3 . 1 . . . . 1 . 1 . . . . 1 1 1 1 . 1 . . Registered Components 2 | . . . . . . . . . . . . . . . . . . . . . . . . . . 1 . . . . . . 1 . . . . . . . Registered Prototypes 6 | . . . . . . . . . . . . . . . . . . . . . 1 . . . . 1 . . . . . . 2 1 . 1 . . . . Zone Layout 4 | . . . . . . . . 1 . . . . . . . . . . 1 . . . . . . . . 2 . . . . . . . . . . . . Gate Test 138-A 2 | . . . . . . . . . . . . . . . . . . . . . . . . . . . . . . . . . . . . . . . . 2 Gate Test 138-B 2 | . . . . . . . . . . . . . . . . . . . . . . . . . . . . . . . . . . . . . . . . 2 Gate Test 138-C 2 | . . . . . . . . . . . . . . . . . . . . . . . . . . . . . . . . . . . . . . . . 2 Fabricator Hacks 40 | . . . . . . . . . . . . . . 2 . . . . 2 . 8 . . . . 7 . 6 . . . . 10 2 . . . 3 . . Load Schematic 18 | . . . . . . . . . . . . . . 1 . . . . 1 . 4 . . . . 3 . 3 . . . . 4 1 . . . 1 . . Build 22 | . . . . . . . . . . . . . . 1 . . . . 1 . 4 . . . . 4 . 3 . . . . 6 1 . . . 2 . . Repair Station Hacks 67 | . . . . . . . . 3 . . . . . 2 . . . . . . . . . . . 2 . 14 . . . . 10 3 . 8 7 18 . . Scan Component 36 | . . . . . . . . 2 . . . . . 2 . . . . . . . . . . . 1 . 7 . . . . 5 2 . 4 4 9 . . Repair 31 | . . . . . . . . 1 . . . . . . . . . . . . . . . . . 1 . 7 . . . . 5 1 . 4 3 9 . . Recycling Unit Hacks 19 | . . . . . . . . . . . . . . . . . . . 9 . 1 . . . . 2 . . . . . . 2 . . . . 5 . . Retrieve Components 19 | . . . . . . . . . . . . . . . . . . . 9 . 1 . . . . 2 . . . . . . 2 . . . . 5 . . Scanalyzer 9 | . . . . . . . . . . . . . . . . . . . . . . . . . . 1 . . . . . . . . . 3 4 1 . . Insert Component 9 | . . . . . . . . . . . . . . . . . . . . . . . . . . 1 . . . . . . . . . 3 4 1 . . Garrison Access Hacks 24 | . . . . . . . 1 1 . . . . . . . . . . 3 . 2 . . . . 4 . 2 . . . . 3 1 1 1 . 5 . . Seal Access 24 | . . . . . . . 1 1 . . . . . . . . . . 3 . 2 . . . . 4 . 2 . . . . 3 1 1 1 . 5 . . Unauthorized Hacks 259 | . 4 . 2 . . . 6 17 . . . . . 12 . . . . 29 . 15 . . . . 22 . 20 . . . . 29 16 4 17 31 25 10 . Terminals 91 | . 1 . 1 . . . 2 3 . . . . . 5 . . . . 9 . 7 . . . . 7 . 6 . . . . 8 7 2 8 14 8 3 . Track 9 | . . . . . . . 1 1 . . . . . 1 . . . . . . . . . . . . . . . . . . . 1 . . 2 2 1 . Assimilate 27 | . . . . . . . . 1 . . . . . . . . . . 5 . 2 . . . . 2 . 4 . . . . 4 1 . 5 1 2 . . Botnet 42 | . 1 . 1 . . . 1 1 . . . . . 3 . . . . 3 . 4 . . . . 4 . 2 . . . . 4 4 2 3 5 3 1 . Detonate 2 | . . . . . . . . . . . . . . . . . . . . . . . . . . . . . . . . . . . . . 2 . . . Disrupt 6 | . . . . . . . . . . . . . . . . . . . . . . . . . . . . . . . . . . 1 . . 3 1 1 . Operators 5 | . . . . . . . . . . . . . . 1 . . . . 1 . 1 . . . . 1 . . . . . . . . . . 1 . . . Fabricators 18 | . . . . . . . . . . . . . . 1 . . . . 1 . . . . . . 4 . 4 . . . . 5 . . . . 3 . . Report 4 | . . . . . . . . . . . . . . . . . . . . . . . . . . 1 . 1 . . . . 1 . . . . 1 . . Prioritize 4 | . . . . . . . . . . . . . . . . . . . . . . . . . . 1 . 1 . . . . 1 . . . . 1 . . Siphon 6 | . . . . . . . . . . . . . . . . . . . . . . . . . . 2 . 1 . . . . 2 . . . . 1 . . Haulers 4 | . . . . . . . . . . . . . . 1 . . . . 1 . . . . . . . . 1 . . . . 1 . . . . . . . Repair Stations . | . . . . . . . . . . . . . . . . . . . . . . . . . . . . . . . . . . . . . . . . . Recycling Units 3 | . 1 . . . . . 1 1 . . . . . . . . . . . . . . . . . . . . . . . . . . . . . . . . Tunnel 3 | . 1 . . . . . 1 1 . . . . . . . . . . . . . . . . . . . . . . . . . . . . . . . . Scanalyzers . | . . . . . . . . . . . . . . . . . . . . . . . . . . . . . . . . . . . . . . . . . Garrison Access 2 | . . . . . . . . 1 . . . . . . . . . . . . . . . . . . . . . . . . . . . . 1 . . . Reprogram 1 | . . . . . . . . . . . . . . . . . . . . . . . . . . . . . . . . . . . . . 1 . . . Jam 1 | . . . . . . . . 1 . . . . . . . . . . . . . . . . . . . . . . . . . . . . . . . . Data Cores Recovered 1 | . . . . . . . . . . . . . . . . . . . . . 1 . . . . . . . . . . . . . . . . . . . Used . | . . . . . . . . . . . . . . . . . . . . . . . . . . . . . . . . . . . . . . . . . Hacking Detections 171 | . 3 . 4 1 . . 1 11 1 . . . . 9 . . . . 24 . 17 . . . . 19 . 15 . . . . 10 6 2 10 14 22 2 . Full Trace Events 24 | . . . . . . . . 2 1 . . . . . . . . . 4 . 3 . . . . 2 . 2 . . . . 3 1 1 2 . 2 1 . Feedback Events 4 | . . . . . . . . . . . . . . . . . . . 1 . . . . . . . . . . . . . 2 . . . . 1 . . Hackware Fried 4 | . . . . . . . . . . . . . . . . . . . 1 . . . . . . . . . . . . . 2 . . . . 1 . . Feedback Blocked . | . . . . . . . . . . . . . . . . . . . . . . . . . . . . . . . . . . . . . . . . . Robot Schematics Acquired 5 | . . . . . . . . . . . . . . . . . 5 . . . . . . . . . . . . . . . . . . . . . . . Robots Built . | . . . . . . . . . . . . . . . . . . . . . . . . . . . . . . . . . . . . . . . . . Matter . | . . . . . . . . . . . . . . . . . . . . . . . . . . . . . . . . . . . . . . . . . Time . | . . . . . . . . . . . . . . . . . . . . . . . . . . . . . . . . . . . . . . . . . Total Robot Build Rating . | . . . . . . . . . . . . . . . . . . . . . . . . . . . . . . . . . . . . . . . . . Part Schematics Acquired 26 | . . . . . . . . . 1 . . . . . . . 5 . 1 . 2 . . . . 4 . 1 . . 4 . 2 1 . 4 . 1 . . Parts Built 19 | . . . . . . . . . . . . . . 2 . . . . 1 . 3 . . . . 4 . 3 . . . . 4 1 . . . 1 . . Matter 5186 | . . . . . . . . . . . . . . 168 . . . . 285 . 921 . . . . 1052 . 882 . . . . 1149 417 . . . 312 . . Time 2079 | . . . . . . . . . . . . . . 42 . . . . 152 . 320 . . . . 560 . 374 . . . . 483 74 . . . 74 . . Total Part Build Rating 127 | . . . . . . . . . . . . . . 8 . . . . 5 . 17 . . . . 28 . 19 . . . . 32 9 . . . 9 . . Parts Repaired 31 | . . . . . . . . 1 . . . . . . . . . . . . . . . . . 1 . 7 . . . . 5 1 . 4 3 9 . . Time 1571 | . . . . . . . . 32 . . . . . . . . . . . . . . . . . 26 . 536 . . . . 304 56 . 241 85 291 . . Parts Recycled . | . . . . . . . . . . . . . . . . . . . . . . . . . . . . . . . . . . . . . . . . . Recycled Matter . | . . . . . . . . . . . . . . . . . . . . . . . . . . . . . . . . . . . . . . . . . Retrieved Matter . | . . . . . . . . . . . . . . . . . . . . . . . . . . . . . . . . . . . . . . . . . Retrieved Components 73 | . . . . . . . . . . . . . . . . . . . 45 . 1 . . . . 3 . . . . . . 2 . . . . 22 . . Parts Scanalyzed . | . . . . . . . . . . . . . . . . . . . . . . . . . . . . . . . . . . . . . . . . . Part Schematics Acquired . | . . . . . . . . . . . . . . . . . . . . . . . . . . . . . . . . . . . . . . . . . Parts Damaged . | . . . . . . . . . . . . . . . . . . . . . . . . . . . . . . . . . . . . . . . . . Bothacking | -11 -10 -10 -9 -9 -9 -8 -8 -7 -7 -7 -7 -7 -6 -6 -6 -6 -6 -5 -5 -5 -5 -5 -5 -5 -4 -4 -4 -4 -4 -4 -4 -3 -3 -3 -2 -2 -2 -1 -1 -1 ------------ Run | Scr Mat Min Mat Min Exi Min Mat Fac Low Low Zio Dee Pro Fac Low Low Dat Pro Fac Was Fac Upp Upp War Pro Fac Was Fac Upp Upp Zhi Pro Res Tes Res Qua Sec Acc Com Ac0 Used RIF Installer . | . . . . . . . . . . . . . . . . . . . . . . . . . . . . . . . . . . . . . . . . . Robots Hacked 32 | . . . . . 11 . . . . . . 1 . 1 . . 1 . . . . . . 1 . 2 . . . . 3 . . 2 8 1 1 . . . Non-combat 7 | . . . . . 3 . . . . . . . . 1 . . . . . . . . . . . 2 . . . . . . . . 1 . . . . . Combat 25 | . . . . . 8 . . . . . . 1 . . . . 1 . . . . . . 1 . . . . . . 3 . . 2 7 1 1 . . . Robot Hacks Applied 32 | . . . . . 11 . . . . . . 1 . 1 . . 1 . . . . . . 1 . 2 . . . . 3 . . 2 8 1 1 . . . parse_system 29 | . . . . . 11 . . . . . . 1 . . . . 1 . . . . . . 1 . . . . . . 3 . . 2 8 1 1 . . . find_chute 3 | . . . . . . . . . . . . . . 1 . . . . . . . . . . . 2 . . . . . . . . . . . . . . Manual 2 | . . . . . . . . . . . . . . . . . . . . . . . . . . . . . . . . . . . 1 . 1 . . . Relay Couplers Released 11 | . . . . . . . . . . . . . . . . . . . . . . . . . . . . . . . . . . . 7 . 3 1 . . Machine Destruction 1 | . . . . . . . . . . . . . . . . . . . . . . . . . . . . . . . . . . . . . . 1 . . Programmers 10 | . . . . . . . . . . . . . . . . . . . . . . . . . . . . . . . . . . . 7 . 3 . . . Robots Rewired 5 | . . . . . . . . . . 1 . . . . . . . . 1 . . . . . . . . . 1 . . . . 2 . . . . . . Allies Hacked . | . . . . . . . . . . . . . . . . . . . . . . . . . . . . . . . . . . . . . . . . . Hacks Repelled . | . . . . . . . . . . . . . . . . . . . . . . . . . . . . . . . . . . . . . . . . . Allies | -11 -10 -10 -9 -9 -9 -8 -8 -7 -7 -7 -7 -7 -6 -6 -6 -6 -6 -5 -5 -5 -5 -5 -5 -5 -4 -4 -4 -4 -4 -4 -4 -3 -3 -3 -2 -2 -2 -1 -1 -1 -------- Run | Scr Mat Min Mat Min Exi Min Mat Fac Low Low Zio Dee Pro Fac Low Low Dat Pro Fac Was Fac Upp Upp War Pro Fac Was Fac Upp Upp Zhi Pro Res Tes Res Qua Sec Acc Com Ac0 Total Allies 42 | . . 3 . 1 . . . . . 1 3 . . . . . . . 5 . 1 . . . . 2 . 3 1 . . . 4 3 1 3 4 5 2 . Largest Group 3 | . . 3 2 1 . . . . . 1 3 3 . . . . . . 1 . 1 . . . . 1 . 3 1 . . . 2 3 . 2 2 3 2 . Highest-Rated Group 359 | . . 40 24 31 . . . . . 21 71 71 . . . . . . 49 . 10 . . . . 26 . 62 49 . . . 70 168 . 88 222 359 235 . Highest-Rated Ally 222 | . . 16 16 31 . . . . . 21 31 31 . . . . . . 49 . 10 . . . . 26 . 26 49 . . . 44 79 . 44 222 124 122 . Total Orders 87 | . . 2 . . . . . . . 11 . . . . . . . . 5 . 2 . 11 . . 8 . . . . . . . 7 1 2 . 33 5 . STAY 7 | . . 1 . . . . . . . 1 . . . . . . . . 1 . . . 1 . . . . . . . . . . . . 1 . 1 1 . GOTO 48 | . . . . . . . . . . 6 . . . . . . . . . . 1 . 7 . . 5 . . . . . . . 5 . 1 . 22 1 . FOLLOW 16 | . . 1 . . . . . . . 4 . . . . . . . . 1 . 1 . 3 . . 2 . . . . . . . 2 . . . 1 1 . EXPLORE 7 | . . . . . . . . . . . . . . . . . . . 3 . . . . . . . . . . . . . . . 1 . . 2 1 . RETURN 9 | . . . . . . . . . . . . . . . . . . . . . . . . . . 1 . . . . . . . . . . . 7 1 . Ally Attacks 114 | . . 11 10 . . . . . . 4 . 5 . . . . . . 2 . . . . . . . . . . . . . . 32 . . 34 15 1 . Total Damage 5786 | . . 119 133 . . . . . . 109 . 84 . . . . . . 82 . . . . . . . . . . . . . . 1760 . . 2771 703 25 . Kills 28 | . . 3 3 . . . . . . 1 . 1 . . . . . . . . . . . . . . . . . . . . . 5 . . 12 3 . . Allies Corrupted 2 | . . . . . . . . . . . . . . . . . . . . . . . . . . . . . 1 . . . . . . . . 1 . . Allies Melted 1 | . . . . . . . . . . . . 1 . . . . . . . . . . . . . . . . . . . . . . . . . . . . Intel | -11 -10 -10 -9 -9 -9 -8 -8 -7 -7 -7 -7 -7 -6 -6 -6 -6 -6 -5 -5 -5 -5 -5 -5 -5 -4 -4 -4 -4 -4 -4 -4 -3 -3 -3 -2 -2 -2 -1 -1 -1 ------- Run | Scr Mat Min Mat Min Exi Min Mat Fac Low Low Zio Dee Pro Fac Low Low Dat Pro Fac Was Fac Upp Upp War Pro Fac Was Fac Upp Upp Zhi Pro Res Tes Res Qua Sec Acc Com Ac0 Robot Analysis Total 8 | . 1 . 2 . . . . . 1 . . . . . . . . . . . . . . . . . . . . . 4 . . . . . . . . . Derelict Logs Recovered 22 | . . 2 . 1 . . . . 2 . 1 . 1 . . 3 . 2 . . . 1 3 . 1 . . . 2 3 . . . . . . . . . . Drone Launches 37 | . . . . . . . . . . . . . . . . . . . 8 . . 3 . . . 4 . . . . . . . . 2 . . 14 6 . Drone Recoveries 7 | . . . . . . . . . . . . . . . . . . . . . . . . . . . . . . . . . . . . . . 7 . . Decoded 0b10 Intel 3 | . . . . . . . . . . . . . . 3 . . . . . . . . . . . . . . . . . . . . . . . . . . Patrols 3 | . . . . . . . . . . . . . . 3 . . . . . . . . . . . . . . . . . . . . . . . . . . Exploration | -11 -10 -10 -9 -9 -9 -8 -8 -7 -7 -7 -7 -7 -6 -6 -6 -6 -6 -5 -5 -5 -5 -5 -5 -5 -4 -4 -4 -4 -4 -4 -4 -3 -3 -3 -2 -2 -2 -1 -1 -1 ------------- Run | Scr Mat Min Mat Min Exi Min Mat Fac Low Low Zio Dee Pro Fac Low Low Dat Pro Fac Was Fac Upp Upp War Pro Fac Was Fac Upp Upp Zhi Pro Res Tes Res Qua Sec Acc Com Ac0 Turns Passed 62027 | 71 599 1693 546 2152 805 1519 825 2123 9087 2645 1678 4345 1003 1345 1796 1523 454 585 3970 62 2921 932 922 251 445 2212 9 2659 611 605 48 422 1930 783 1185 998 2656 2356 1068 188 Spaces Moved 65743 | 34 234 928 220 1011 387 714 260 1107 2006 1620 1131 2302 678 820 1248 1020 246 964 7191 119 2938 1372 1310 888 821 3875 81 4859 891 1148 143 1028 3190 1441 2826 1747 4730 5049 2469 697 Core 7 | 7 . . . . . . . . . . . . . . . . . . . . . . . . . . . . . . . . . . . . . . . . Treads 3855 | 27 234 928 220 1011 387 714 256 78 . . . . . . . . . . . . . . . . . . . . . . . . . . . . . . . . Legs . | . . . . . . . . . . . . . . . . . . . . . . . . . . . . . . . . . . . . . . . . . Wheels 11948 | . . . . . . . 4 1029 2006 1620 1131 2228 678 820 1248 1020 164 . . . . . . . . . . . . . . . . . . . . . . . Hover . | . . . . . . . . . . . . . . . . . . . . . . . . . . . . . . . . . . . . . . . . . Flight 49933 | . . . . . . . . . . . . 74 . . . . 82 964 7191 119 2938 1372 1310 888 821 3875 81 4859 891 1148 143 1028 3190 1441 2826 1747 4730 5049 2469 697 Fastest Speed 10 | 50 160 180 180 180 200 200 180 130 150 140 140 37 130 130 130 130 37 37 34 37 37 40 40 20 40 11 11 22 22 22 22 22 22 12 12 24 12 12 10 10 Average Speed 57 | 137 172 180 185 199 200 200 214 159 150 140 140 134 130 130 130 133 103 37 37 37 38 40 40 23 40 32 11 22 22 22 22 22 22 22 21 24 24 24 13 13 Slowest Speed 382 | 160 180 180 200 200 200 200 270 220 150 150 140 150 130 130 130 140 140 117 117 37 40 40 40 100 40 114 11 382 22 22 22 22 24 382 24 24 104 96 109 19 Overloaded Moves . | . . . . . . . . . . . . . . . . . . . . . . . . . . . . . . . . . . . . . . . . . Propulsion Burnouts . | . . . . . . . . . . . . . . . . . . . . . . . . . . . . . . . . . . . . . . . . . Robots Hopped 242 | . . . . . . . . . . . . . . . . . . . 72 . 21 . . 1 . 18 . 27 . . . . 7 14 9 5 30 22 7 9 Cave-ins Triggered . | . . . . . . . . . . . . . . . . . . . . . . . . . . . . . . . . . . . . . . . . . Teleports 2 | . . . . . . . . . . . . . . . . . . . . . . . . . . . . . . . . . . . . . . . 1 1 Exploration Rate (%) 76 | 4 45 98 26 100 77 98 34 27 99 96 90 91 80 24 94 98 77 88 95 90 57 98 98 90 82 78 73 61 95 96 62 88 69 99 58 86 89 95 86 40 Regions Visited 40 Branch Regions 26 Pre-discovered Areas 16 | . 1 . . . 1 . 1 1 3 . 3 . 1 . . . 1 . . . . . . . . . . . . 1 3 . . . . . . . . . Known Exits Taken 29 | . . . 1 1 . . . 1 1 1 1 1 1 1 1 1 1 1 . . 1 1 1 1 1 . . 1 1 1 1 1 1 1 1 1 1 1 . . Unknown Exits Taken 7 | 1 1 1 . . 1 1 1 . . . . . . . . . . . . . . . . . . . . . . . . . . . . . . . 1 . Scrap Searched 41 | . . 2 . 1 . 1 . . 4 3 2 . 3 . 3 4 . 1 . . . 3 3 . 2 . . . 2 3 . 4 . . . . . . . . Spaces Dug 1201 | . 3 6 . 21 . 15 1 15 11 18 2 12 40 7 17 13 . 8 176 3 69 23 5 1 12 98 . 112 10 24 . 4 83 32 48 43 116 136 16 1 Terrain Destroyed 1636 | . 17 25 . 63 . 98 17 95 16 21 3 21 49 25 45 15 20 23 176 3 117 23 5 1 12 98 . 113 10 24 . 4 83 32 48 43 121 143 26 1 Melee 1033 | . . . . . . . . . . . . . 35 3 . . . . 167 3 69 23 5 1 12 98 . 112 10 24 . 4 83 31 48 43 109 136 16 1 Projectile 193 | . . . . . . 2 3 7 12 21 3 21 8 22 38 15 . 23 9 . . . . . . . . 1 . . . . . 1 . . 7 . . . AOE 410 | . 17 25 . 63 . 96 14 88 4 . . . 6 . 7 . 20 . . . 48 . . . . . . . . . . . . . . . 5 7 10 . Actions | -11 -10 -10 -9 -9 -9 -8 -8 -7 -7 -7 -7 -7 -6 -6 -6 -6 -6 -5 -5 -5 -5 -5 -5 -5 -4 -4 -4 -4 -4 -4 -4 -3 -3 -3 -2 -2 -2 -1 -1 -1 --------- Run | Scr Mat Min Mat Min Exi Min Mat Fac Low Low Zio Dee Pro Fac Low Low Dat Pro Fac Was Fac Upp Upp War Pro Fac Was Fac Upp Upp Zhi Pro Res Tes Res Qua Sec Acc Com Ac0 Total 85983 | 49 357 946 285 1117 407 765 402 1342 8039 1917 1211 3305 734 1013 1372 1160 463 1161 8056 132 4553 1721 1699 924 919 4588 82 6096 1288 1463 154 1217 4215 1803 3266 2220 5933 5832 3023 754 Wait 16038 | . 32 2 . 54 . 8 22 63 5980 216 58 529 1 79 68 109 108 157 544 5 1490 308 368 . 82 487 . 983 376 291 . 186 834 247 316 386 924 518 197 10 Move 65252 | 33 233 927 219 1011 386 713 259 1106 2005 1619 1130 2301 677 819 1247 1019 245 963 7057 118 2899 1371 1309 885 820 3840 80 4811 890 1147 142 1027 3175 1414 2808 1736 4674 5006 2453 678 Hop 206 | . . . . . . . . . . . . . . . . . . . 62 . 17 . . 1 . 17 . 20 . . . . 7 12 8 5 25 20 3 9 Pick Up 420 | 6 25 3 11 11 4 3 17 27 8 12 . 65 2 12 5 7 19 . 23 2 8 2 1 3 2 13 1 17 . . 1 . 13 17 16 6 14 20 20 4 Fast Attach 253 | 7 1 1 3 . . . 1 9 4 3 6 27 . 4 . 1 11 . 19 . 11 4 5 13 . 23 . 14 4 . 2 . 13 11 3 3 11 6 30 3 Attach 164 | . 2 . 4 2 . 1 13 9 1 . . 22 . 4 . . 5 7 19 1 5 2 2 2 . 10 . 5 . . . . 5 2 2 1 8 11 14 5 Detach 111 | . . . . 1 . . . 5 2 2 . 21 . 3 . 1 14 7 16 . 3 2 2 2 . 8 . 2 . . . . 6 . . . 2 7 4 1 Swap 464 | . 8 4 2 8 4 9 13 18 9 10 1 39 10 20 5 2 7 . 30 1 10 2 . 4 1 19 . 39 3 1 . . 23 16 13 15 60 31 17 10 Drop 503 | . 15 4 7 5 2 4 4 27 6 13 7 84 1 13 . 2 45 . 33 2 14 6 6 12 2 25 1 20 4 . 2 . 15 20 13 4 14 9 58 4 Fire 858 | 3 39 4 37 12 . 21 65 78 24 37 9 214 7 47 47 19 2 23 22 . 3 . . 1 . 4 . 1 1 . 5 . . 10 10 3 17 3 90 . Melee 1541 | . . . . . 11 . . . . . . . 36 4 . . . 4 228 3 93 23 6 1 12 140 . 178 10 24 2 4 124 54 76 61 153 199 65 30 Ram . | . . . . . . . . . . . . . . . . . . . . . . . . . . . . . . . . . . . . . . . . . Kick . | . . . . . . . . . . . . . . . . . . . . . . . . . . . . . . . . . . . . . . . . . Crush 30 | . 2 1 2 11 . 6 8 . . . . . . . . . . . . . . . . . . . . . . . . . . . . . . . . . Escape Stasis 115 | . . . . . . . . . . . . . . 8 . . . . . . . . . . . . . 6 . . . . . . . . 31 . 70 . Rewire 2 | . . . . 2 . . . . . . . . . . . . . . . . . . . . . . . . . . . . . . . . . . . . Trap 15 | . . . . . . . . . . 5 . 3 . . . . 7 . . . . . . . . . . . . . . . . . . . . . . . Miscellaneous 11 | . . . . . . . . . . . . . . . . . . . 3 . . 1 . . . 2 . . . . . . . . 1 . . 2 2 . Route ------- -11/Scrapyard -10/Materials -10/Mines (discovered 2 exits: *Mat x2) -9/Materials (discovered 4 exits: *Min x2 / Sto x2) -9/Mines (discovered 3 exits: *Mat x2 / *Exi) -9/Exiles -8/Mines (discovered 2 exits: *Mat x2) -8/Materials -7/Factory (discovered 2 exits: *Low x2) -7/Lower Caves -7/Lower Caves (discovered 2 exits: *Fac / *Zio) -7/Zion (discovered 2 exits: *Dee / *Pro) -7/Deep Caves -6/Proximity Caves -6/Factory (discovered 2 exits: *Low x2) -6/Lower Caves (discovered 2 exits: *Low / *Dat) -6/Lower Caves (discovered 2 exits: *Fac / *Dat) -6/Data Miner -5/Proximity Caves -5/Factory (discovered 6 exits: *Fac x3 / *Upp x2 / *Ext) -5/Waste -5/Factory (discovered 4 exits: *Upp x2 / *Ext x2) -5/Upper Caves -5/Upper Caves (discovered 2 exits: *Fac / *War) -5/Warlord -4/Proximity Caves -4/Factory (discovered 5 exits: *Res x4 / *Upp) -4/Waste -4/Factory (discovered 4 exits: *Res x2 / *Upp x2) -4/Upper Caves -4/Upper Caves (discovered 2 exits: *Res / *Zhi) -4/Zhirov -3/Proximity Caves -3/Research (discovered 6 exits: *Res x3 / *Arm / *Tes x2) -3/Testing -2/Research (discovered 3 exits: *Acc / *Qua x2) -2/Quarantine (discovered 2 exits: *Acc / *Sec) -2/Section 7 -1/Access (discovered 2 exits: Sur / *Com) -1/Command (discovered 3 exits: *Sur x2 / *Ac0) -1/Access_0 To Epsilon Eridani History --------- Turn | Location | Event 16 | -11/Scrapyard | Discovered new exit (range 14) 72 | -11/Scrapyard | Entered Materials 319 | -10/Materials | Build established: Mutant 557 | -10/Materials | Discovered new exit (range 8) 671 | -10/Materials | Entered Mines 678 | -10/Mines | Received a Rocket Launcher from a helpful Derelict 700 | -10/Mines | Assisted by bots powering up and referring to "LRC-V3" 1067 | -10/Mines | Learned location of 1 exit from Materials 1265 | -10/Mines | Learned 2 Materials zone layouts 1675 | -10/Mines | Discovered new exit (range 6) 2199 | -10/Mines | Discovered new exit (range 7) 2364 | -10/Mines | Entered Materials 2364 | -9/Materials | Accompanied by 2 allies 2364 | -9/Materials | Evolved 2 slots: Utility x2 2365 | -9/Materials | Identified exit to Mines 2826 | -9/Materials | Identified exit to Storage 2910 | -9/Materials | Entered Mines 2929 | -9/Mines | Met a Derelict shopkeep closing up shop 2955 | -9/Mines | Build established: Hauler-Mutant 3008 | -9/Mines | Discovered new exit (range 13) 3177 | -9/Mines | Met a Derelict who couldn't figure out how to use a Trap Extractor 3294 | -9/Mines | Discovered new exit (range 14) 3719 | -9/Mines | Identified exit to Exiles 4006 | -9/Mines | Received a Mining Laser from a helpful Derelict 4267 | -9/Mines | Deemed a non-threat by the Exiles lab entrance 5062 | -9/Mines | Entered Exiles 5112 | -9/Exiles | Met 8R-AWN 5144 | -9/Exiles | Met EX-HEX 5310 | -9/Exiles | Met EX-BIN 5486 | -9/Exiles | Met EX-DEC 5494 | -9/Exiles | Learned location of Zion (-7) 5599 | -9/Exiles | Visited The Gauntlet 5842 | -9/Exiles | Discovered new exit (range 14) 5867 | -9/Exiles | Entered Mines 6655 | -8/Mines | Discovered new exit (range 12) 7127 | -8/Mines | Discovered new exit (range 11) 7386 | -8/Mines | Entered Materials 7386 | -8/Materials | Evolved 2 slots: Utility x2 7512 | -8/Materials | Destroyed 11 combat bots 7656 | -8/Materials | Lost 5 parts (1n2u2w) 8139 | -8/Materials | Discovered new exit (range 12) 8186 | -8/Materials | First assault squad dispatched 8211 | -8/Materials | Entered Factory 8211 | -7/Factory | Evolved 2 slots: Utility x2 8240 | -7/Factory | Lost 5 parts (1p2n1u1w) 8367 | -7/Factory | Discovered new exit (range 10) 8613 | -7/Factory | Identified exit to Lower Caves 8729 | -7/Factory | Build established: Scavenger-Mutant 9239 | -7/Factory | Garrison activated, responded to threat 9320 | -7/Factory | Build established: Hauler-Mutant 9659 | -7/Factory | Repaired Rocket Launcher 10211 | -7/Factory | First assault squad dispatched 10334 | -7/Factory | Entered Lower Caves 10335 | -7/Lower Caves | Encountered a Warlord checkpoint 11784 | -7/Lower Caves | Learned location of Armory (-3) 11784 | -7/Lower Caves | Learned Extension emergency access door positions 11821 | -7/Lower Caves | Learned 4 Factory zone layouts 11893 | -7/Lower Caves | Discovered new exit (range 9) 12586 | -7/Lower Caves | Build established: Hauler-Skirmisher 19420 | -7/Lower Caves | Identified exit to Lower Caves 19421 | -7/Lower Caves | Entered another Lower Caves area 19561 | -7/Lower Caves | Discovered new exit (range 9) 19576 | -7/Lower Caves | Identified exit to Factory 19768 | -7/Lower Caves | Attracted the attention of an 0b10 checkpoint 20435 | -7/Lower Caves | Discovered new exit (range 8) 20450 | -7/Lower Caves | Identified exit to Zion 21397 | -7/Lower Caves | Spotted B-75 Beast 22066 | -7/Lower Caves | Entered Zion 22161 | -7/Zion | Discovered new exit (range 18) 22184 | -7/Zion | Identified exit to Proximity Caves 22313 | -7/Zion | Learned location of Quarantine (-2) 22411 | -7/Zion | Learned 4 Factory zone layouts 22489 | -7/Zion | Found Prototype Device 22489 | -7/Zion | Identified Bomb Factory No. 2 22604 | -7/Zion | Learned location of Data Miner (-6) 23417 | -7/Zion | Discovered new exit (range 3) 23417 | -7/Zion | Saw the warning signs outside the Deep Caves entrance 23418 | -7/Zion | Identified exit to Deep Caves 23557 | -7/Zion | Gained Derelict followers 23744 | -7/Zion | Entered Deep Caves 23744 | -7/Deep Caves | Accompanied by 3 allies 24101 | -7/Deep Caves | Attacked by Z-Imprinter 24144 | -7/Deep Caves | Core integrity fell below 50% 24193 | -7/Deep Caves | Destroyed Z-Imprinter 24213 | -7/Deep Caves | Found Zio. Metafield Generator 24219 | -7/Deep Caves | Lost 11 parts (2p1n2u6w) 24242 | -7/Deep Caves | Build established: Hauler-Mutant 24371 | -7/Deep Caves | Found Surveybot 24 Chip 24374 | -7/Deep Caves | Found Surveybot 24 Scanner 24582 | -7/Deep Caves | Z-Facility disabled 24900 | -7/Deep Caves | Found Zio. Weapon Casing 25232 | -7/Deep Caves | Discovered new exit (range 6) 26186 | -7/Deep Caves | Found Prototype Protection 26186 | -7/Deep Caves | Identified Zio. Heavy Carapace 26195 | -7/Deep Caves | Found Zio. Weapon Casing 26210 | -7/Deep Caves | Found Zio. Heavy Carapace 26789 | -7/Deep Caves | Spotted as-11449 26793 | -7/Deep Caves | Destroyed as-11449 26884 | -7/Deep Caves | Spotted as-23035 26935 | -7/Deep Caves | Triggered Deep Caves wall 26935 | -7/Deep Caves | Exposed GOLEM chamber 26938 | -7/Deep Caves | Spotted AS-29553 26957 | -7/Deep Caves | Found Prototype Energy Cannon 26974 | -7/Deep Caves | Destroyed AS-29553 26980 | -7/Deep Caves | Spotted AS-86134 26989 | -7/Deep Caves | Destroyed AS-86134 26990 | -7/Deep Caves | Build established: Mutant 26998 | -7/Deep Caves | Destroyed 34 combat bots 27009 | -7/Deep Caves | Identified Gui. Plasma Cannon 27159 | -7/Deep Caves | Triggered Deep Caves wall 27161 | -7/Deep Caves | Found GOLEM Unit 27240 | -7/Deep Caves | Destroyed 25 combat bots 27342 | -7/Deep Caves | Destroyed as-23035 27862 | -7/Deep Caves | Found GOLEM Unit 28087 | -7/Deep Caves | Identified exit to Proximity Caves 28089 | -7/Deep Caves | Entered Proximity Caves 28228 | -6/Proximity Caves | Build established: Hauler-Mutant 29069 | -6/Proximity Caves | Discovered exit to Factory (range 13) 29092 | -6/Proximity Caves | Entered Factory 29092 | -6/Factory | Evolved 2 slots: Utility x2 29493 | -6/Factory | Identified exit to Lower Caves 29753 | -6/Factory | Fabricated Powered Armor? 30437 | -6/Factory | Entered Lower Caves 31772 | -6/Lower Caves | A Derelict revealed a hidden shortcut to meet someone special 31775 | -6/Lower Caves | Discovered new exit (range 7) 31781 | -6/Lower Caves | Identified exit to Data Miner 31788 | -6/Lower Caves | Identified exit to Lower Caves 32233 | -6/Lower Caves | Entered another Lower Caves area 32251 | -6/Lower Caves | Discovered new exit (range 10) 32260 | -6/Lower Caves | Identified exit to Factory 32984 | -6/Lower Caves | Learned Factory emergency access door positions 32988 | -6/Lower Caves | Learned Factory emergency access door positions 33756 | -6/Lower Caves | Entered Data Miner 33756 | -6/Data Miner | Discovered new exit (range 6) 33765 | -6/Data Miner | Identified exit to Proximity Caves 33783 | -6/Data Miner | Met Data Miner 33807 | -6/Data Miner | Learned location of Section 7 (-2) 33807 | -6/Data Miner | Acquired the access code to Warlord's prototype stash 33829 | -6/Data Miner | Received God Mode back door access code from Data Miner 33932 | -6/Data Miner | Data Conduit disabled 34210 | -6/Data Miner | Entered Proximity Caves 34437 | -5/Proximity Caves | Build established: Scavenger-Mutant 34787 | -5/Proximity Caves | Learned Factory trap positions 34789 | -5/Proximity Caves | Discovered exit to Factory (range 6) 34793 | -5/Proximity Caves | Learned Factory garrison access intel 34795 | -5/Proximity Caves | Entered Factory 34795 | -5/Factory | Evolved 2 slots: Utility x2 34796 | -5/Factory | Loaded intel: 82 trap records 34798 | -5/Factory | Loaded intel: 4 garrison access locations 34891 | -5/Factory | Spotted B-75 Beast 35316 | -5/Factory | Found Prototype Launcher 35316 | -5/Factory | Identified Scatter Rocket Array 35320 | -5/Factory | Found Scatter Rocket Array 36340 | -5/Factory | Adv. System Shield fried by hacking feedback 36513 | -5/Factory | Discovered new exit (range 8) 36517 | -5/Factory | Identified exit to Upper Caves 36813 | -5/Factory | Discovered exit to Upper Caves (range 26) 36888 | -5/Factory | Build established: Hacker-Mutant 36937 | -5/Factory | Discovered new exit (range 5) 36938 | -5/Factory | Identified exit to Factory 37386 | -5/Factory | Discovered exit to Factory (range 16) 37563 | -5/Factory | Local fabrication network quarantined 37591 | -5/Factory | Central database locked down 37639 | -5/Factory | Fabricated Exp. Utility Shielding? 37795 | -5/Factory | First assault squad dispatched 38116 | -5/Factory | Discovered new exit (range 12) 38119 | -5/Factory | Identified exit to Extension 38230 | -5/Factory | Discovered exit to Factory (range 15) 38758 | -5/Factory | Found Exp. Signal Interpreter 38765 | -5/Factory | Manually triggered Chute Trap 38765 | -5/Factory | Sucked down chute 38765 | -5/Factory | Entered Waste 38778 | -5/Waste | Spotted C-40 Crusher 38780 | -5/Waste | EMP discharged 38780 | -5/Waste | System corruption reached 10% 38786 | -5/Waste | Spotted C-40 Crusher 38788 | -5/Waste | Spotted C-40 Crusher 38791 | -5/Waste | Spotted C-40 Crusher 38792 | -5/Waste | Spotted C-40 Crusher 38797 | -5/Waste | Spotted C-40 Crusher 38821 | -5/Waste | Discovered new exit (range 16) 38827 | -5/Waste | Identified exit to Factory 38827 | -5/Waste | Entered Factory 39430 | -5/Factory | Lost 3 parts (1n2w) 40968 | -5/Factory | Fabricated Exp. Sensor Array (x1) 41171 | -5/Factory | Fabricated Exp. Cesium-ion Thruster (x1) 41471 | -5/Factory | Discovered exit to Extension (range 6) 41503 | -5/Factory | Fabricated Exp. Cesium-ion Thruster (x1) 41748 | -5/Factory | Entered Upper Caves 41778 | -5/Upper Caves | Learned 8 Factory zone layouts 41827 | -5/Upper Caves | Attracted the attention of an 0b10 checkpoint 42100 | -5/Upper Caves | Spotted B-75 Beast 42485 | -5/Upper Caves | Discovered new exit (range 7) 42494 | -5/Upper Caves | Identified exit to Upper Caves 42680 | -5/Upper Caves | Entered another Upper Caves area 42680 | -5/Upper Caves | Accompanied by 3 allies 42682 | -5/Upper Caves | Discovered exit to Factory (range 8) 42853 | -5/Upper Caves | Identified exit to Warlord 42855 | -5/Upper Caves | Learned 8 Factory zone layouts 42900 | -5/Upper Caves | Encountered a Warlord checkpoint 42999 | -5/Upper Caves | Found Alien Artifact 43602 | -5/Upper Caves | Entered Warlord 43625 | -5/Warlord | Learned Research trap positions 43625 | -5/Warlord | Learned Research security intel 43625 | -5/Warlord | Learned Armory recycling unit intel 43625 | -5/Warlord | Learned Research garrison access intel 43740 | -5/Warlord | Visited the Vortex Lab 43741 | -5/Warlord | Found Prototype Energy Gun 43741 | -5/Warlord | Identified Vortex Shotgun 43759 | -5/Warlord | Warlord's base attacked by MAIN.C 43772 | -5/Warlord | Met Warlord 43775 | -5/Warlord | Opened Warlord's prototype stash 43778 | -5/Warlord | Found Prototype Device 43778 | -5/Warlord | Identified Thermal Barrier 43783 | -5/Warlord | Found Ghost Barrier 43798 | -5/Warlord | Identified Dimensional Node Initializer 43798 | -5/Warlord | Initialized slip node 43800 | -5/Warlord | Found Prototype Processor 43851 | -5/Warlord | Discovered new exit (range 12) 43853 | -5/Warlord | Identified exit to Proximity Caves 43853 | -5/Warlord | Entered Proximity Caves 43855 | -4/Proximity Caves | Spotted B-86 Titan 44298 | -4/Proximity Caves | Entered Factory 44298 | -4/Factory | Evolved 2 slots: Utility x2 44299 | -4/Factory | Identified exit to Research 44367 | -4/Factory | Repaired Exp. Utility Shielding 44641 | -4/Factory | Discovered exit to Research (range 10) 44705 | -4/Factory | Identified Exp. Core Analyzer 44791 | -4/Factory | Discovered new exit (range 22) 44875 | -4/Factory | Discovered exit to Research (range 9) 45691 | -4/Factory | Spotted B-86 Titan 45818 | -4/Factory | Build established: Hacker-Sprinter 45873 | -4/Factory | Discovered exit to Research (range 4) 45888 | -4/Factory | Fabricated Inertial Stasis Machine? 45993 | -4/Factory | Fabricated Inertial Stasis Machine? 46147 | -4/Factory | Fabricated Inertial Stasis Machine (x1) 46240 | -4/Factory | Fabricated Inertial Stasis Machine (x1) 46466 | -4/Factory | Central database locked down 46498 | -4/Factory | Local fabrication network quarantined 46510 | -4/Factory | Manually triggered Chute Trap 46510 | -4/Factory | Sucked down chute 46510 | -4/Factory | Entered Waste 46514 | -4/Waste | Spotted C-40 Crusher 46515 | -4/Waste | Spotted C-40 Crusher 46516 | -4/Waste | Spotted C-40 Crusher 46518 | -4/Waste | Discovered new exit (range 10) 46519 | -4/Waste | Identified exit to Factory 46519 | -4/Waste | Entered Factory 46577 | -4/Factory | Identified exit to Upper Caves 46656 | -4/Factory | Spotted B-86 Titan 46724 | -4/Factory | Central database locked down 46972 | -4/Factory | Repaired Exp. Utility Shielding? 47262 | -4/Factory | Found Exp. Melee Analysis Suite 47328 | -4/Factory | Discovered exit to Research (range 7) 47742 | -4/Factory | Fabricated Exp. Sensor Array (x1) 47794 | -4/Factory | Repaired Exp. Cesium-ion Thruster? 48026 | -4/Factory | Repaired Exp. Sensor Array? 48303 | -4/Factory | Repaired Exp. Utility Shielding 48377 | -4/Factory | Repaired Adv. Phase Shifter 48451 | -4/Factory | Repaired Adv. Reaction Control System 48550 | -4/Factory | Repaired Plasma Lance 48812 | -4/Factory | Discovered exit to Research (range 14) 48894 | -4/Factory | Fabricated Exp. Utility Shielding? 48987 | -4/Factory | Fabricated Beam Splitter? 49178 | -4/Factory | Entered Upper Caves 49180 | -4/Upper Caves | Attracted the attention of an 0b10 checkpoint 49209 | -4/Upper Caves | Learned location of 1 exit from Research 49231 | -4/Upper Caves | Learned location of 1 exit from Research 49411 | -4/Upper Caves | Discovered new exit (range 8) 49717 | -4/Upper Caves | Identified exit to Upper Caves 49789 | -4/Upper Caves | Entered another Upper Caves area 49824 | -4/Upper Caves | Discovered exit to Research (range 8) 49852 | -4/Upper Caves | Encountered a Warlord checkpoint 49861 | -4/Upper Caves | Learned location of 2 exits from Research 49941 | -4/Upper Caves | Spotted B-86 Titan 50008 | -4/Upper Caves | Learned Research emergency access door positions 50381 | -4/Upper Caves | Discovered new exit (range 5) 50382 | -4/Upper Caves | Identified exit to Zhirov 50394 | -4/Upper Caves | Entered Zhirov 50394 | -4/Zhirov | Discovered new exit (range 3) 50395 | -4/Zhirov | Identified exit to Proximity Caves 50398 | -4/Zhirov | Met Zhirov 50407 | -4/Zhirov | Learned location of Testing (-3) 50407 | -4/Zhirov | Learned location of Command (-1) 50412 | -4/Zhirov | Zhirov requested help retrieving the SGEMP Prototype 50416 | -4/Zhirov | Found Alien Artifact 50416 | -4/Zhirov | Identified Integrated Reactor 50416 | -4/Zhirov | Installed Integrated Reactor, increased core energy generation (+2%) 50422 | -4/Zhirov | Found Alien Artifact 50442 | -4/Zhirov | Entered Proximity Caves 50606 | -3/Proximity Caves | Received a Behemoth hack from an annoying Tinkerer 50759 | -3/Proximity Caves | Discovered exit to Research (range 6) 50864 | -3/Proximity Caves | Entered Research 50864 | -3/Research | Evolved 2 slots: Utility x2 50865 | -3/Research | Identified exit to Armory 50866 | -3/Research | Identified exit to Testing 50866 | -3/Research | Identified exit to Research 50867 | -3/Research | Loaded intel: 104 trap records 50870 | -3/Research | Loaded intel: 3 garrison access locations 50999 | -3/Research | Spotted B-86 Titan 51334 | -3/Research | Repaired Exp. Cesium-ion Thruster 51396 | -3/Research | Repaired Lgt. Antimatter Reactor 51476 | -3/Research | Repaired Exp. Utility Shielding 51520 | -3/Research | Repaired Powered Armor 51802 | -3/Research | Adv. Hacking Suite fried by hacking feedback 51876 | -3/Research | Fabricated Dimensional Manipulator? 51879 | -3/Research | Adv. Hacking Suite fried by hacking feedback 51990 | -3/Research | Discovered exit to Testing (range 13) 52163 | -3/Research | Repaired Exp. Cesium-ion Thruster 52243 | -3/Research | Fabricated Dimensional Manipulator? 52496 | -3/Research | Fabricated Dimensional Manipulator (x1) 52575 | -3/Research | Fabricated Exp. Terrain Scanner? 52794 | -3/Research | Entered Testing 52917 | -3/Testing | Discovered exit to Research (range 16) 52949 | -3/Testing | Found Prototype Device 52951 | -3/Testing | Identified Exp. Thermal Shield 52977 | -3/Testing | Spotted Alpha 7 52977 | -3/Testing | Spotted QW-NDR(K) 52979 | -3/Testing | Spotted WP-677(K) 52979 | -3/Testing | Spotted 0S-NVH(K) 52981 | -3/Testing | Rewired QW-NDR(K) 52981 | -3/Testing | Allies destroyed WP-677(K) 52982 | -3/Testing | Rewired 0S-NVH(K) 53012 | -3/Testing | Destroyed Alpha 7 53014 | -3/Testing | Found Exp. ECM Suite 53197 | -3/Testing | Repaired Exp. Cesium-ion Thruster 53287 | -3/Testing | Found Ghost Barrier 53356 | -3/Testing | Found Prototype Ballistic Cannon 53356 | -3/Testing | Identified Perforator 53406 | -3/Testing | Fabricated Femtoactuators? 53502 | -3/Testing | Local fabrication network quarantined 53512 | -3/Testing | Found Exp. Melee Analysis Suite 53515 | -3/Testing | Found Exp. Melee Analysis Suite 53536 | -3/Testing | Spotted Striker 53536 | -3/Testing | Spotted Striker 53541 | -3/Testing | Spotted Alpha 7 53542 | -3/Testing | Stole the SGEMP Prototype 53577 | -3/Testing | Entered Research 53577 | -2/Research | Warlord forces began assault on 0b10 53577 | -2/Research | Evolved 2 slots: Utility x2 53687 | -2/Research | Research machine network offline 53716 | -2/Research | Found Prototype Launcher 53722 | -2/Research | Identified Point Singularity Launcher 53765 | -2/Research | Discovered new exit (range 4) 53770 | -2/Research | Identified exit to Quarantine 53771 | -2/Research | Discovered new exit (range 8) 53795 | -2/Research | Identified exit to Access 53851 | -2/Research | Met up with Warlord 53889 | -2/Research | Borebot progress halted 53907 | -2/Research | Borebot progress halted 53989 | -2/Research | Borebot progress halted 53991 | -2/Research | Discovered exit to Quarantine (range 16) 54001 | -2/Research | Spotted Striker 54009 | -2/Research | Spotted Striker 54010 | -2/Research | Spotted Striker 54045 | -2/Research | Borebot progress halted 54298 | -2/Research | Spotted Striker 54298 | -2/Research | Spotted Striker 54387 | -2/Research | Spotted B-90 Cyclops 54741 | -2/Research | Spotted Striker 54760 | -2/Research | Took control of God Mode 54760 | -2/Research | Attacked by Warlord forces 54761 | -2/Research | Attacked by Warlord 54762 | -2/Research | Entered Quarantine 54766 | -2/Quarantine | Found Alien Artifact 54792 | -2/Quarantine | Spotted Alpha 7 54797 | -2/Quarantine | Found Alien Launcher 54854 | -2/Quarantine | Identified Transdimensional Reconstructor 54854 | -2/Quarantine | Identified Hpw. Transdimensional Reconstructor 54854 | -2/Quarantine | Identified Sigix Terminator 54930 | -2/Quarantine | Central database locked down 55061 | -2/Quarantine | Discovered exit to Access (range 10) 55218 | -2/Quarantine | Repaired Exp. Utility Shielding 55318 | -2/Quarantine | Repaired Plasma Lance? 55321 | -2/Quarantine | Found Alien Artifact 55321 | -2/Quarantine | Identified Subatomic Replicator 55331 | -2/Quarantine | Repaired Plasma Lance? 55368 | -2/Quarantine | Repaired Exp. Cesium-ion Thruster 55739 | -2/Quarantine | Spotted Fortress 55756 | -2/Quarantine | Discovered new exit (range 6) 55757 | -2/Quarantine | Identified exit to Section 7 55760 | -2/Quarantine | Entered Section 7 55779 | -2/Section 7 | Found Alien Artifact 55787 | -2/Section 7 | Identified Core Reset Matrix 55821 | -2/Section 7 | Found Integrated Reactor 55821 | -2/Section 7 | Installed Integrated Reactor, increased core energy generation (+2%) 55895 | -2/Section 7 | Discovered exit to Access (range 15) 55980 | -2/Section 7 | Spotted B-90 Cyclops 56037 | -2/Section 7 | Repaired Imp. Fusion Compressor 56070 | -2/Section 7 | Spotted S7 Guard 56072 | -2/Section 7 | Found Alien Artifact 56186 | -2/Section 7 | Spotted B-90 Cyclops 56221 | -2/Section 7 | Spotted B-99 Colossus 56221 | -2/Section 7 | Befriended a Behemoth using the annoying Tinkerer's hack 56240 | -2/Section 7 | Found Alien Artifact 56240 | -2/Section 7 | Identified LRC Matter Compressor 56240 | -2/Section 7 | Installed LRC Matter Compressor, increased matter storage capacity (+125) 56245 | -2/Section 7 | Found Alien Artifact 56422 | -2/Section 7 | Spotted Executioner 56436 | -2/Section 7 | Spotted Executioner 56445 | -2/Section 7 | Allies destroyed Executioner 56628 | -2/Section 7 | Repaired Exp. Utility Shielding 56724 | -2/Section 7 | Found Alien Artifact 56733 | -2/Section 7 | Identified Integrated Heat Negator 56733 | -2/Section 7 | Identified LRC Storage 56733 | -2/Section 7 | Identified Integrated Dissipator 56733 | -2/Section 7 | Installed Integrated Heat Negator, increased core heat dissipation (+2%) 56738 | -2/Section 7 | Installed Integrated Dissipator, increased core heat dissipation (+2%) 56938 | -2/Section 7 | Repaired Exp. Utility Shielding 57204 | -2/Section 7 | Found Integrated Dissipator 57204 | -2/Section 7 | Installed Integrated Dissipator, increased core heat dissipation (+2%) 58010 | -2/Section 7 | First assault squad dispatched 58274 | -2/Section 7 | Found Integrated Dissipator 58274 | -2/Section 7 | Installed Integrated Dissipator, increased core heat dissipation (+2%) 58300 | -2/Section 7 | Spotted Alpha 7 58301 | -2/Section 7 | Spotted Alpha 7 58416 | -2/Section 7 | Entered Access 58416 | -1/Access | Evolved 2 slots: Utility x1, Weapon x1 58417 | -1/Access | Loaded intel: 96 machine locations 58417 | -1/Access | Loaded intel: 67 trap records 58417 | -1/Access | Identified exit to Surface 58417 | -1/Access | Discovered exit to Surface (range 155) 58417 | -1/Access | Identified exit to Command 58417 | -1/Access | Discovered exit to Command (range 228) 58417 | -1/Access | Delivered the SGEMP Prototype to Zhirov 58417 | -1/Access | Zhirov transferred Access data 58564 | -1/Access | Zhirov warped through subspace 58569 | -1/Access | Found Adv. Powered Armor 58636 | -1/Access | Repaired Exp. Utility Shielding 58636 | -1/Access | Adv. Hacking Suite fried by hacking feedback 58665 | -1/Access | Repaired Exp. Cesium-ion Thruster? 58666 | -1/Access | First assault squad dispatched 58844 | -1/Access | Spotted B-99 Colossus 58844 | -1/Access | Found Exp. Actuator Array 59005 | -1/Access | Repaired Exp. Utility Shielding? 59019 | -1/Access | Repaired Plasma Lance? 59037 | -1/Access | Fabricated Exp. Armor Integrity Analyzer? 59041 | -1/Access | Repaired Plasma Lance? 59217 | -1/Access | Local fabrication network quarantined 59248 | -1/Access | Installed LRC Storage, increased inventory capacity (+2) 59292 | -1/Access | Repaired Plasma Lance? 59354 | -1/Access | Repaired Adv. Powered Armor? 59403 | -1/Access | Repaired Adv. Reaction Control System? 59515 | -1/Access | Build established: Wizard-Sprinter 60177 | -1/Access | Spotted B-99 Colossus 60509 | -1/Access | Repaired Exp. Utility Shielding 60752 | -1/Access | Maximum security lockdown engaged 60772 | -1/Access | Entered Command 60829 | -1/Command | Spotted Combat Programmer 60861 | -1/Command | Used Subatomic Replicator to replicate Dimensional Manipulator 60935 | -1/Command | Met MAIN.C 60935 | -1/Command | 0b10 Conduit disabled 60943 | -1/Command | Destroyed MAIN.C Shell 60945 | -1/Command | MAIN.C activated Command garrisons 60946 | -1/Command | Spotted Combat Programmer 60946 | -1/Command | Spotted M Guard 60949 | -1/Command | Zhirov used SGEMP to disable MAIN.C 61158 | -1/Command | Found Prototype Device 61158 | -1/Command | Identified AEGIS Remote Shield 61161 | -1/Command | Found Prototype Reactor 61161 | -1/Command | Identified Zero-point Reactor 61177 | -1/Command | Found AEGIS Remote Shield 61224 | -1/Command | Found Prototype Device 61224 | -1/Command | Identified Exp. Shock Absorption System 61226 | -1/Command | Found Prototype Protection 61226 | -1/Command | Identified Exp. Powered Armor 61230 | -1/Command | Found Exp. Powered Armor 61233 | -1/Command | Found Prototype Protection 61233 | -1/Command | Identified Centrium Heavy Armor Plating 61263 | -1/Command | Discovered exit to Surface (range 18) 61388 | -1/Command | Found Prototype Protection 61388 | -1/Command | Identified Hvy. Regenerative Plating 61397 | -1/Command | Found Zero-point Reactor 61417 | -1/Command | Discovered exit to Surface (range 79) 61520 | -1/Command | Destroyed all MAIN.C guards 61593 | -1/Command | Found Prototype Energy Cannon 61593 | -1/Command | Identified Hpw. Disruptor Cannon 61595 | -1/Command | Found Prototype Ballistic Cannon 61595 | -1/Command | Identified Omega Cannon 61607 | -1/Command | Found Prototype Energy Cannon 61607 | -1/Command | Identified Cld. Nova Cannon 61816 | -1/Command | Found Prototype Launcher 61816 | -1/Command | Identified Adv. Micro-nuke Launcher 61834 | -1/Command | Warped through subspace to slip node 61834 | -1/Command | Discovered new exit (range 4) 61837 | -1/Command | Found Exp. Target Analyzer 61840 | -1/Command | Entered Access_0 61841 | -1/Access_0 | Met Architect 61850 | -1/Access_0 | Subspace Access Node disabled 61869 | -1/Access_0 | Subspace Access Node disabled 61880 | -1/Access_0 | A6 warped into view 61881 | -1/Access_0 | Subspace Access Node disabled 61888 | -1/Access_0 | Subspace Access Node disabled 61912 | -1/Access_0 | A5 warped into view 61926 | -1/Access_0 | Destroyed A5 61938 | -1/Access_0 | Started Test 138-B, establishing a local singularity 61942 | -1/Access_0 | Singularity Gate disabled 61951 | -1/Access_0 | Found Prototype Device 61951 | -1/Access_0 | Identified Exp. Thermal Defense Suite 61961 | -1/Access_0 | Destroyed A8 62011 | -1/Access_0 | Destroyed Architect 62013 | -1/Access_0 | Extracted unknown sensor trigger ID from Architect's data core 62025 | -1/Access_0 | Warped through subspace to slip node 62025 | -1/Access_0 | Discovered exit to Surface (range 8) 62028 | *** | Escaped! Last Messages --------------- main line to deal with high-level threats. As expected there was less thorough vetting than under normal circumstances. I can control them all at the flip of a switch. >>Record "Log L.OZLVE4D5" [REDACTED] >>Record "Log L.QL67S5A3" [REDACTED] >>Record "Log L.RSL58V7F" [REDACTED] >>Record "Log L.VFLK3RLK" Warlord has finally begun his main assault, and it's proceeding quite well. All upper Research areas are under control, as are Testing, Quarantine, and Armory. At this rate, MAIN.C and Warlord forces will wipe each other out, or at least severely cripple one another. >>Record "Log L.XLJZXWC5" [REDACTED] >>Record "Log L.Y1U23ASU" [REDACTED] 62025_ Warped through subspace, drawn to slip node. 62025_ EXIT=FOUND: SURFACE Map ----- +----------------------------------------------------+ | | | | | | | | | | | | | | | | | | | | | | | | | | | | | | | | | ?????????????????????????????????????????????????? | | ?????????????????????????????????????????????????? | | ?????????????????????????????????????????????????? | | ?????????????????????????????????????????????????? | | ?????????????????????????????????????????????????? | | ?????????????????????????????????????????????????? | | ????????????????????????###??????????????????????? | | ???????????????????????## ##?????????????????????? | | ???????????????????????# #?????????????????????? | | ???????????????????????# @ #?????????????????????? | | ??????????????????????## #?????????????????????? | | ??????????????????????# #?????????????????????? | | ??????????????????????# ##?????????????????????? | | ??????????????????????## #?????????????????????? | | ??????????????????????# #?????????????????????? | | ??????????????????????# ##?????????????????????? | | ??????????????????????# < #?????????????????????? | | ??????????????????????# ##?????????????????????? | | ??????????????????????## #??????????????????????? | | ???????????????????????####??????????????????????? | | ?????????????????????????????????????????????????? | | ?????????????????????????????????????????????????? | | ?????????????????????????????????????????????????? | | ?????????????????????????????????????????????????? | | ?????????????????????????????????????????????????? | | ?????????????????????????????????????????????????? | | ?????????????????????????????????????????????????? | | ?????????????????????????????????????????????????? | | ?????????????????????????????????????????????????? | | ?????????????????????????????????????????????????? | | ?????????????????????????????????????????????????? | | ?????????????????????????????????????????????????? | | ?????????????????????????????????????????????????? | | ?????????????????????????????????????????????????? | +----------------------------------------------------+ Best States ------------- Heat Dissipation 152 Energy Generation 53 Energy Capacity 2240 Matter Stores 425 Matter Capacity 425 Sight Range 16 Robot Scan Range 30 Terrain Scan Range 30 Terrain Scan Density 2010 ECM Strength 5 Jamming Range 8 Additional Mass Support 100 EM Shielding 2 Armor Coverage 1600 Resistance: KI 15 Resistance: TH 75 Resistance: EX 15 Resistance: EM 20 Resistance: I 15 Resistance: S 15 Resistance: P 15 Propulsion Shielding 66 Utility Shielding 90 Weapon Shielding 100 Melee Speed Boost 50 Phase Shifting 15 Evasion (%) 97 Targeting Accuracy 8 Melee Accuracy 24 Launcher Accuracy 40 Target Analysis 8 Core Analysis 8 Armor Integrity Analysis 90 Recoil Reduction 2 Particle Charging 20 Salvage Targeting 2 Offensive Hacking 52 Defensive Hacking 40 Item Schematics ----------------- Powered Armor | -7/Lower Caves | Hacked Combat Drone Bay | -6/Data Miner | Free Lgt. Regenerative Plating | -6/Data Miner | Free Exp. Flexi-carbon Leg | -6/Data Miner | Free Triangulator | -6/Data Miner | Free Exp. Terrain Scan Processor | -6/Data Miner | Free Exp. Utility Shielding | -5/Factory | Hacked Exp. Sensor Array | -5/Factory | Hacked Exp. Cesium-ion Thruster | -5/Factory | Hacked Inertial Stasis Machine | -4/Factory | Hacked Exp. Melee Analysis Suite | -4/Factory | Hacked Adv. Powered Armor | -4/Factory | Hacked Beam Splitter | -4/Factory | Hacked Exp. Terrain Scanner | -4/Factory | Hacked Assault Drone Bay | -4/Zhirov | Free Exp. Heat Sink | -4/Zhirov | Free Exp. Optical Array | -4/Zhirov | Free Imp. Arc Thrower | -4/Zhirov | Free Adv. Reaction Control System | -3/Research | Hacked Dimensional Manipulator | -3/Research | Hacked Femtoactuators | -3/Testing | Hacked Exp. Armor Integrity Analyzer | -2/Quarantine | Hacked Exp. Force Field | -2/Quarantine | Hacked Exp. Actuator Array | -2/Quarantine | Hacked Exp. Phase Shifter | -2/Quarantine | Hacked Exp. Q-thruster | -1/Access | Hacked Robot Schematics ------------------ S-27 Virus | -6/Data Miner | Free G-50 Soldier | -6/Data Miner | Free G-67 Veteran | -6/Data Miner | Free P-70 Sage | -6/Data Miner | Free I-36 Angel | -6/Data Miner | Free Fabricated ------------ Powered Armor | x2 | -6/Factory Exp. Utility Shielding | x1 | -5/Factory Exp. Sensor Array | x1 | -5/Factory Exp. Cesium-ion Thruster | x1 | -5/Factory Exp. Cesium-ion Thruster | x1 | -5/Factory Inertial Stasis Machine | x1 | -4/Factory Inertial Stasis Machine | x1 | -4/Factory Inertial Stasis Machine | x1 | -4/Factory Inertial Stasis Machine | x1 | -4/Factory Exp. Sensor Array | x1 | -4/Factory Exp. Utility Shielding | x1 | -4/Factory Beam Splitter | x1 | -4/Factory Dimensional Manipulator | x1 | -3/Research Dimensional Manipulator | x1 | -3/Research Dimensional Manipulator | x1 | -3/Research Exp. Terrain Scanner | x1 | -3/Research Femtoactuators | x1 | -3/Testing Exp. Armor Integrity Analyzer | x1 | -1/Access Alien Tech Used ----------------- Dimensional Node Initializer Integrated Reactor Subatomic Replicator LRC Matter Compressor Integrated Heat Negator Integrated Dissipator LRC Storage High-powered Transdimensional Reconstructor Transdimensional Reconstructor Achievements -------------- Shutout Challenges ------------ None Game ------ Seed ProtonMeleeCharger Manual? 0 Play Time 16:42:30 Cumulative 1026.5 hours Start 2019.12.13 @ 22:57:37 End 2019.12.15 @ 18:49:52 Sessions 11 Manual Loads 0 Difficulty Rogue Special Mode None Game No. 374 Rogue 374 Adventurer 0 Explorer 0 Win Type 0 Total 247 Types 214/5/11/3/3/2/9 Lore% 97 Gallery% 99 Achievement% 91 Wizard Run 0 Options --------- ASCII 0 Keyboard 0 Movement Numpad Keybinds 0 Fullscreen 1 Font 18/Terminus Map View 76x50 Tactical HUD 1 Map Filters NONE Filters NONE Steam 1 RUN: 94b190aa-778f-4ad0-aebf-29f3d45865f0